{"text_format":"1","workbook":"xlsx","n_sheets":4,"sheets":[" Pacchetto-Scuola bozza","Pacchetto-Scuola 2017-18","Foglio2","Elenco per Etichette"],"not_rendered":{"charts":0,"images":0,"macros":0,"external_links":0,"defined_names":3,"comments":0,"pivot_tables":0},"unopened":[],"bounds":{"document_bytes":16777216,"sheet_cells":100000,"rows_first":2000,"rows_last":500,"rows_between":2000,"halvings":0,"cell_chars":16384,"cell_head_chars":4096},"cells_cut":0,"cells_raw":0,"read":"whole","date_system":"1900"}

{"sheet":" Pacchetto-Scuola bozza","index":0,"n_rows":154,"n_cols":21,"rows_kept":154,"cut":false,"hidden":false,"merged":[]}
[null,"PACCHETTO SCUOLA per STUDENTI RESIDENTI NEL COMUNE DI SINALUNGA iscritti nell'anno scolastico 2017/2018 alle scuole secondarie di primo grado e secondo grado statali e paritarie localizzate nella Regione Toscana - LIQUIDAZIONE AVENTI DIRITTO DETERMINAZIONE N. 129 del 1.02.2018"]
["N°","Codice fiscale studente","Ordine e scolastico","Classe","Isee","Importo standard","Importo minimo 76,84%","Studente","Indirizzo","Comune","Scuola","Classe","Esito scolastico","Plesso","Cellulare","Fisso","Prot.","Nota Sospensione","Nome Cognome genitore","Cod. Fscale"]
[1,"BRCRRA00B69I726N","2^","4°",0,190,{"$f":"(F3*76.84/100)","v":145.99600000000001},"Buracchi Aurora","Via Chico Mendes N° 7","Sinalunga","Secondaria 2^","4°","Promossa","Siena",39372246207,null,61,null,"Buracchi Paolo","BRCPLA67M05A468Y"]
[2,"BRCMNL05L26G752V","1^","2°",0,150,{"$f":"(F4*76.84/100)","v":115.26},"Buracchi Manuel","Via Chico Mendes N° 7","Sinalunga","Secondaria 1^","2°","Promosso","Bettolle",3271856804,null,58,null,"Buracchi Paolo","BRCPLA67M05A468Y"]
[3,"DNISDR06P51F592Y","1^","1°",0,210,161.364,"Dini Asia Andrea","Via Bezzecca N° 30","Sinalunga","Secondaria 1^","1°","Promossa","Sinalunga",3407396061,null,6,null,"Dini Eleonora","DNILNR80A70A468T"]
[4,"GRDRNS03H24Z160C","2^","1°",0,280,215.15200000000002,"Gorde Ernes","Via Trento N° 229/A","Sinalunga","Secondaria 2^","1°","Promosso","Arezzo",3383378471,null,96,null,"Gorde Sacip","GRDSCP74L05Z118E"]
[5,"HSSSLM05C18F592O","1^","2°",0,150,115.26,"Houssni Islam","Via Trieste N° 82","Sinalunga","Secondaria 1^","2°","Promosso","Sinalunga",3283416412,null,126,null,"El Haddaoui Loubna","LHDLBN74R59Z330D"]
[6,"HSSSSM03A20Z330D","2^","1°",0,280,215.15200000000002,"Houssni Oussama","Via Trieste N° 82","Sinalunga","Secondaria 2^","1°","Promosso","Sinalunga",3338254112,null,137,null,"El Haddaoui Loubna","LHDLBN74R59Z330D"]
[7,"NNASST06T10F592I","1^","1°",0,210,161.364,"Nauni Sebastiano","Via Piave N° 17C","Sinalunga","Secondaria 1^","1°","Promosso","Sinalunga",3313966653,null,82,null,"Nauni Martine","NNAMTN79M56Z100H"]
[8,"NLOSNM06B46Z322B","1^","2°",0,150,115.26,"Noli Serenamaria","Via del popolo N° 14","Sinalunga","Secondaria 1^","2°","Promossa","Sinalunga",3282570572,null,117,null,"Kaingu Doris Kache","KNGDSK72D70Z322Y"]
[9,"NRTLSS05S10F592O","1^","2°",0,150,115.26,"Onorato Alessio","Loc. Poggio Basso 303/a","Sinalunga","Secondaria 1^","2°","Promosso","Sinalunga",3477933722,null,46,null,"De Simone Carla","DSMCRL70P51F839H"]
[10,"NRTNTN02P14G752K","2^","2°",0,170,130.62800000000001,"Onorato Antonio","Loc. Poggio Basso 303/a","Sinalunga","Secondaria 2^","2°","Promosso","Siena",3477933722,null,45,null,"De Simone Carla","DSMCRL70P51F839H"]
[11,"SRBDRD03T04F592Y","2^","1°",0,280,215.15200000000002,"Serban Edward Romeo","Loc. Pietreto N° 40","Sinalunga","Secondaria 2^","1°","Promosso","Siena",3485698371,null,75,null,"Serban Iulia Mihaela","SRBLHL74C45Z129D"]
[12,"SPRLLN02L56A024Y","2^","2°",0,170,130.62800000000001,"Speranza Liliana","Via Siena N° 80","Sinalunga","Secondaria 2^","2°","Promossa","Foiano della Chiana",3931248555,577623081,41,null,"Mennone Monica","MNNMNC74D56F639Z"]
[13,"SPRSVT02L16A024N","2^","2°",0,170,130.62800000000001,"Speranza Salvatore","Via Siena N° 80","Sinalunga","Secondaria 2^",2,"Promosso","Foiano della Chiana",3931248555,577623081,40,"Sospensione del Giudizio","Mennone Monica","MNNMNC74D56F639Z"]
[14,"TRRNCI06H13F592Z","1^","1°",0,210,161.364,"Terrosi Nico","Via Cassia N° 171","Sinalunga","Secondaria 1^","1°","Promosso","Bettolle",3290099435,null,130,null,"Cuseri Michela","CSRMHL73R63A390Z"]
[15,"BLZFLV05B18F839I","1^","3°",6.12,150,115.26,"Balzano Flavio","Via Trieste N° 172","Sinalunga","Secondaria 1^","3°","Promosso","Sinalunga",3271636216,5771651062,111,null,"Sergio Anna","SRGNNA80B59F839O"]
[16,"BLZGPP03L70F839S","2^","1°",6.12,280,215.15200000000002,"Balzano Giuseppina","Via Trieste N° 172","Sinalunga","Secondaria 2^","1°","Promossa","Montepulciano",3279747250,null,110,null,"Sergio Anna","SRGNNA80B59F839O"]
[17,"PLNLBT00R62Z100G","2^","3°",224.72,190,145.99600000000001,"Planasi Elizabeta","Via Trieste, N° 193","Sinalunga","Secondaria 2^","3°","Promossa","Montepulciano",3200474818,null,23,"Sospensione del Giudizio","Planasi Agron","PLNGRN71L11Z100G"]
[18,"MGHNSA06E24F592V","1^","1°",256.11,210,161.364,"Maghni Anas","Via Nencetti N° 19","Sinalunga","Secondaria 1^","1°","Promosso","Sinalunga",3466099057,577624665,136,null,"Maghni Abbes","MGHBBS73A01Z330N"]
[19,"VCLGDI05H69F592P","1^","2°",321.02,150,115.26,"Vocile Giada","Loc. Ceppi N° 272B","Sinalunga","Secondaria 1^","2°","Promossa","Sinalunga",3406604369,577623254,145,null,"D'Agostino Carmela","DGSCML73C50Z133S"]
[20,"LZEDLP06P14Z100C","1^","1°",541.95000000000005,210,161.364,"Elezi Dalip","Via Nencetti N° 26","Sinalunga","Secondaria 1^","2°","Promosso","Sinalunga",3933961541,null,77,null,"Elezi Suzana","LZESZN79A42Z100Y"]
[21,"KPLSRA05R58Z158E","1^","2°",569.91,150,115.26,"Kaplani Sara","Via Colonna N° 89","Sinalunga","Secondaria 1^","2°","Promossa","Sinalunga",3883814418,null,144,null,"Kaplani Samir","KPLSMR78R04Z158J"]
[22,"DZLDNE05T16I726L","1^","2°",1255.4100000000001,150,115.26,"Dzeljo Edin","Via Ravenna N° 14 g","Sinalunga","Secondaria 1^","2°","Promosso","Bettolle",3383829843,null,148,null,"Dzeljo Zejdjan","DZLZDJ76D10Z158C"]
[23,"DZLMMD02E18Z158U","2^","2°",1255.4100000000001,170,130.62800000000001,"Dzeljo Mehmed","Via Ravenna N° 14 g","Sinalunga","Secondaria 2^","2°","Promosso","Siena",3296169116,null,149,null,"Dzeljo Zejdjan","DZLZDJ76D10Z158C"]
[24,"FRCLCU06B11F592H","1^","1°",1257.47,210,161.364,"Ferace Luca","Via Aurelio Saffi N° 4","Sinalunga","Secondaria 1^","1°","Promosso","Bettolle",3498223939,577660061,4,null,"Ferace Silvana Graciela","FRCSVN77A56Z600G"]
[25,"FRCNLS04M02F592A","1^","3°",1257.47,150,115.26,"Ferace Nicolas","Via Aurelio Saffi N° 4","Sinalunga","Secondaria 1^","3°","Promosso","Bettolle",3498223939,577660061,3,null,"Ferace Silvana Graciela","FRCSVN77A56Z600G"]
[26,"MRALSN02H03F592B","2^","2°",1257.47,170,130.62800000000001,"Mari Alessandro","Via Aurelio Saffi N° 4","Sinalunga","Secondaria 2^","2°","Promosso","Montepulciano",3427748811,null,1,null,"Ferace Silvana Graciela","FRCSVN77A56Z600G"]
[27,"DMALJN97S43Z160S","2^","5°",1346.99,190,145.99600000000001,"Ademi Aldijana","Via Ferrari N° 21","Sinalunga","Secondaria 2^","5°","Promossa","Sinalunga",3347350271,577660189,146,null,"Ademi Aldijana","DMALJN97S43Z160S"]
[28,"GRMSRN03L64F592O","2^","1°",1773.81,280,215.15200000000002,"Grimaldi Sharon","Via De Filippo N° 3","Sinalunga","Secondaria 2^","1°","Promossa","Foiano della Chiana",3200474818,null,22,null,"Grimaldi Umberto","GRMMRT60P15H431K"]
[29,"LNUMME04E52F592T","1^","3°",2056.5700000000002,150,115.26,"Luini Emma","Via Rossi N° 1","Sinalunga","Secondaria 1^","3°","Promossa","Sinalunga",3343489014,577679154,118,null,"Martini Lara","MRTLRA70D64A468L"]
[30,"RMNNMO03S57A024F","2^","1°",2139.71,280,215.15200000000002,"Romano Noemi","Via Trento N° 223","Sinalunga","Secondaria 2^","1°","Promossa","Montepulciano",3927894859,"Walter Tobagi 22 Rigomagno",88,null,"Cinquegrana Immacolata","CNQMMM82S63F839E"]
[31,"RMNTMS06T05D790D","1^","1°",2139.71,210,161.364,"Romano Tommaso","Via Trento N° 223","Sinalunga","Secondaria 1^","1°","Promosso","Sinalunga",3392520403,null,89,null,"Cinquegrana Immacolata","CNQMMM82S63F839E"]
[32,"LTNLSS01D11F592U","2^","2°",2264.5500000000002,null,null,"Latempa Alessio","Via Bezzecca N° 28","Sinalunga","Secondaria 2^","2°","RESPINTO","Arezzo",3207487692,null,67,null,"Peruzzi Elisabetta","PRZLBT82P44A468O"]
[33,"LTMDNS03P12F592X","2^","1°",2264.5500000000002,280,215.15200000000002,"Latempa Dennis","Via Bezzecca N° 28","Sinalunga","Secondaria 2^","1°","Promosso","Arezzo",3923962395,null,107,null,"Peruzzi Elisabetta","PRZLBT82P44A468O"]
[34,"TMMLSE02T65F592J","2^","2°",2288.5,170,130.62800000000001,"Tammaro Elisa","Via dante N° 38","Sinalunga","Secondaria 2^","2°","Promossa","Siena",3200474818,null,21,null,"Riccarelli Elena","RCCLNE79D56A468H"]
[35,"SMOCRSS06A16G813Q","1^","1°",2432.79,210,161.364,"Osimo Christian","Via degli Etruschi N° 16","Sinalunga","Secondaria 1^","1°","Promosso","Sinalunga",3336892892,null,103,null,"Gladkova Natalya","GLDNLY75A45Z138F"]
[36,"CNCVLI01L51F592V","2^","3°",2447.87,190,145.99600000000001,"Cencini Viola","Via della Rocca N° 22","Sinalunga","Secondaria 2^","3°","Promossa","Montepulciano",3271331174,null,106,"Sospensione del Giudizio","Noli Stefania","NLOSFN69T41A468G"]
[37,"DMAMLA03A17Z160N","2^","1°",2757.19,280,215.15200000000002,"Ademi Amil","Via Trento N° 76","Sinalunga","Secondaria 2^","1°","Promosso","Montepulciano",32994909048,null,64,null,"Ademi Kimeta","DMAKMT78H63Z160Y"]
[38,"DMAJMN06M11Z160O","1^","1°",2757.19,210,161.364,"Ademi Jasmin","Via Trento N° 76","Sinalunga","Secondaria 1^","1°","Promosso","Sinalunga",3494375374,null,65,null,"Ademi Kimeta","DMAKMT78H63Z160Y"]
[39,"DNLFNC06M27I726H","1^","1°",2769.27,210,161.364,"D'Aniello Francesco","Via Saffi N° 10","Sinalunga","Secondaria 1^","1°","Promosso","Sinalunga",3313966653,null,83,null,"Bene Noemi","BNENMO66H46E041D"]
[40,"CRDJSC05S70I726Q","1^","2°",2808.78,150,115.26,"Corda Jessica","Loc. santarello N° 151","Sinalunga","Secondaria 1^","2°","Promossa","Sinalunga",3485698371,null,47,null,"Corda Giordano","CRDGDN72R20D827W"]
[41,"TRZNGL05C19F592C","1^","2°",2857.66,150,115.26,"Torzoni Angelo","Via Degli Etruschi N° 9","Sinalunga","Secondaria 1^","2°","Promosso","Sinalunga",3490893050,null,147,null,"Torzoni Alessandro ","TRZLSN75B03I726F"]
[42,"RSVMTN02A47F592C","2^","2°",3051.71,170,130.62800000000001,"Ruseva Martina Ruseva","Via Caselle alte N° 99","Sinalunga","Secondaria 2^","2°","Promossa","Montepulciano",3808907718,null,37,null,"Borisova Tanya Angelova","BRSTYN75H47Z104X"]
[43,"DNTCYS04L09G702G","1^","3°",3157.22,150,115.26,"D'Antonio Crystopher","Via Borgo S.Marcellino N° 1","Sinalunga","Secondaria 1^","3°","Promosso","Sinalunga",3452863920,577623396,74,null,"Turini Robertina","TRNRRT71H60Z112M"]
[44,"DNTJTH03H08G702C","2^","1°",3157.22,280,215.15200000000002,"D'Antonio Jonathan","Via Borgo S.Marcellino N° 1","Sinalunga","Secondaria 2^","1°","Promosso","Siena",3452863920,577623396,73,null,"Turini Robertina","TRNRRT71H60Z112M"]
[45,"FRMDNC00618A024O","2^","3°",3244.15,190,145.99600000000001,"Fraumeni Domenico","Via Ferrari N° 5","Sinalunga","Secondaria 2^",3,"Promosso","Foiano della Chiana",3881173812,null,27,null,"Vobbio Giuseppina Monia","VBBGPP76B60M208X"]
[46,"FRMMHL05C24D790K","1^","2°",3244.15,150,115.26,"Fraumeni Michele","Via Ferrari N° 5","Sinalunga","Secondaria 1^","2°","Promosso","Sinalunga",3401049339,null,28,null,"Vobbio Giuseppina Monia","VBBGPP76B60M208X"]
[47,"SNGLNB01A23Z222D","2^","2°",3348.98,170,130.62800000000001,"Singh Anmolbir","Via Trento N° 8","Sinalunga","Secondaria 2^","1°","Promosso","Foiano della Chiana",3397190401,null,114,null,"Singh Jagdish","SNGJDS60B25Z222L"]
[48,"SNGHMN98P15Z222F","2^","2°",3348.98,null,null,"Singh Harmanbir","Via Trento N° 9","Sinalunga","Secondaria 2^","2°","RESPINTO","Foiano della Chiana",3391573414,null,115,"Sospensione del Giudizio","Singh Harmanbir","SNGHMN98P15Z222F"]
[49,"RCCLNE01T45G752M","2^","3°",3386.1,190,145.99600000000001,"Riccio Elenia","Via della Libertà N° 10","Sinalunga","Secondaria 2^","3°","Promossa","Siena",3333738776,null,86,null,"Riccio Giuseppe","RCCGPP58S22F839X"]
[50,"DLIGPR05S28F592E","1^","2°",3402.94,150,115.26,"Di Leo Gianpiero","Via de Filippo N° 10","Sinalunga","Secondaria 1^","2°","Promosso","Sinalunga",3477933722,null,44,null,"Di Leo Giovanni","DLIGNN76E01A881F"]
[51,"LRSDTT99S54A399G","2^","4°",3562.34,190,145.99600000000001,"Lo Russo Diletta"," Via Mazzini N° 26","Sinalunga","Secondaria 2^","4°","Promossa","Cortona",347481985,null,11,null,"Lorusso Davide","LRSDVD68M24L589Y"]
[52,"SCRFRS06T12Z110Z","1^","1°",3599.27,210,161.364,"Scarselli Fares","Via Della Speranza N° 35","Sinalunga","Secondaria 1^","1°","Promosso","Sinalunga",3663387757,577631410,70,null,"Ouerghi Lynda","RGHLND72M49Z110Y"]
[53,"DOUMMD04S05I726M","1^","2°",3621.28,150,115.26,"Ouadii Mohamed","Via Paganini  N° 3","Sinalunga","Secondaria 1^","2°","Promosso","Sinalunga",3923964091,null,132,null,"El Manouni Touraya","LMNTRY70B62Z330V"]
[54,"DOUWSL01M49I726N","2^","2°",3621.28,170,130.62800000000001,"Ouadii Wissal","Via Paganini  N° 3","Sinalunga","Secondaria 2^","2°","Promosso","Chianciano",3384120632,null,131,"Sospensione del Giudizio","El Manouni Touraya","LMNTRY70B62Z330V"]
[55,"MRSSFN05T27F592G","1^ ","2°",3671.46,150,115.26,"Muresan Stefano Giovanni","Via P.Borsellino N° 18","Sinalunga","Secondaria 1^","2°","Promosso","Sinalunga",3404876487,null,87,null,"Danculea Elena","DNCLNE78A53Z129Q"]
[56,"DNEBCH05C23Z330U","1^","1°",3764.52,210,161.364,"Ediani Abdechahid","Via Amendola N° 25","Sinalunga","Secondaria 1^","1°","Promosso","Sinalunga",3477933722,null,43,null,"Talha Aicha","TLHCHA68S42Z330L"]
[57,"DNECHM05C63Z330O","1^","2°",3764.52,150,115.26,"Ediani Chaimaa","Via Amendola N° 25","Sinalunga","Secondaria 1^","2°","Promossa","Sinalunga",3485698371,null,42,null,"Talha Aicha","TLHCHA68S42Z330L"]
[58,"VSTSGY03M22Z140C","1^","3°",3789.45,150,115.26,"Vesterli Sergey","Via Trento 54","Sinalunga","Secondaria 1^","3°","Promosso","Sinalunga",3333272825,577660019,85,null,"Vesterli Oxana","VSTXNO80B54Z255Y"]
[59,"MZZNSM01S66L259Y","2^","2°",3865.26,170,130.62800000000001,"Mazzacane Nives Maria","Via Cassia N° 115","Sinalunga","Secondaria 2^","2°","Promossa","Arezzo",3336892892,null,104,"Sospensione del Giudizio","Izzo Agnese","ZZIGNS81P61L259A"]
[60,"SBRYMN98T55F912N","2^","4°",3910.73,190,145.99600000000001,"Sabar Yasmin","Via Bezzecca N° 24","Sinalunga","Secondaria 2^","4°","Promosso","Siena",3711236171,null,80,null,"Sabar Abdelaziz","SBRBLZ66S13Z330Y"]
[61,"SBRMMD04M16F592V","1^","2°",3910.73,150,115.26,"Sabar Mohamad","Via Bezzecca N° 24","Sinalunga","Secondaria 1^","2°","Promosso","Sinalunga",3711236171,null,81,null,"Sabar Abdelaziz","SBRBLZ66S13Z330Y"]
[62,"LHRSRA03H55I726W","2^","1°",4198.25,280,215.15200000000002,"Lahrech Sara","Via Trieste N° 208","Sinalunga","Secondaria 2^","1°","Promossa","Montepulciano",3288857572,null,108,null,"Bounqourt Najat","BNQNJT75P45Z330U"]
[63,"SBRYAA00D47A390O","2^","4°",4421.7700000000004,190,145.99600000000001,"Sabar Aya","Via Tobagi N° 5","Sinalunga","Secondaria 2^","4°","Promossa","Siena",3402141209,null,97,null,"Sabar Noureddine","SBRNDD62L02Z330C"]
[64,"SBRDOU06T63I726B","1^","1°",4421.7700000000004,210,161.364,"Sabar Douaa","Via Tobagi N° 5","Sinalunga","Secondaria 1^","1°","Promossa","Sinalunga",3389099552,577678379,99,null,"Sabar Noureddine","SBRNDD62L02Z330C"]
[65,"SBRSFN02C05I726Y","2^","2°",4421.7700000000004,170,130.62800000000001,"Sabar Soufiane","Via Tobagi N° 5","Sinalunga","Secondaria 2^","2°","Promosso","Siena",3495408189,null,98,null,"Sabar Noureddine","SBRNDD62L02Z330C"]
[66,"BMRRFK98E31Z330H","2^","3°",4736.41,190,{"$f":"(F68*76.84/100)","v":145.99600000000001},"Boumarouan Rafik","Via Golgi N° 2","Sinalunga","Secondaria 2^","3°","Promossa","Foiano della Chiana",3398313677,null,7,null,"Fili Zahra","FLIZHR70A41Z330E"]
[67,"BMRYSR01R59Z330P","2^","3°",4736.41,190,145.99600000000001,"Boumarouan Youssra","Via Golgi N° 2","Sinalunga","Secondaria 2^","2°","Promosso","Arezzo",3895334926,null,9,"Sospensione del Giudizio","Fili Zahra","FLIZHR70A41Z330E"]
[68,"KMTLFR06L05F592V","1^","1°",4782.93,210,161.364,"Kamta Louis Franck","Via Vittorio Emanuele N° 8","Sinalunga","Secondaria 1^","1°","Promosso","Sinalunga",3296991421,null,140,null,"Makoungue Eugenie","MKNGNE85E57Z306Y"]
[69,"PRZYML03B41Z505Z","2^","1°",4788.6499999999996,280,215.15200000000002,"Perez Perez Yismel Darianna","Via Pio La Torre N° 3","Sinalunga","Secondaria 2^","1°","Promossa","Montepulciano",3283416412,null,125,null,"Perez Fajardo Anyeli","PRZNYL81L44Z505X"]
[70,"GNGMTT03M07F592D","2^","1°",4825.8100000000004,280,215.15200000000002,"Giangregorio Matteo","Via Tempora N° 19","Sinalunga","Secondaria 2^","1°","Promosso","Cortona",3889971418,null,5,null,"Ferace Maria Belen","FRCMBL78T68Z600H"]
[71,"BRBGAI05B59F592S","1^","2°",4916.1099999999997,150,115.26,"Biribicchi Gaia","Via Trasimeno N° 14","Sinalunga","Secondaria 1^","2°","Promossa","Bettolle",3312464039,null,25,null,"Piatti Cinzia","PTTCNZ62P66B243L"]
[72,"VCCCML00A52G273H","2^","4°",5084.92,190,145.99600000000001,"Vaccaro Carmela","Via Don Minzoni N° 59","Sinalunga","Secondaria 2^","4°","Promossa","Cortona",3249035518,null,50,null,"Camarda Maddalena","CMRMDL73R53G273Q"]
[73,"VCCMNL05T65G273U","1^","2°",5084.92,150,115.26,"Vaccaro Emanuela","Via Don Minzoni N° 59","Sinalunga","Secondaria 1^","2°","Promossa","Bettolle",3249035518,null,51,null,"Camarda Maddalena","CMRMDL73R53G273Q"]
[74,"GRPMCH04R61F839W","1^","3°",5133.82,150,115.26,"Grappa Maria Chiara","Via Togliatti N° 8","Sinalunga","Secondaria 1^","2°","Promossa","Bettolle",3883814418,null,142,null,"Grappa Davide","GRPDVD73S20F839E"]
[75,"RCCRNI02B48G752P","2^","2°",5144.8,170,130.62800000000001,"Riccarelli Irene","Loc. San Rocco N° 294/c","Sinalunga","Secondaria 2^","2°","Promossa","Siena",3345498664,null,90,null,"Riccarelli Carlo","RCCCRL59C27L384N"]
[76,"REACHR02M71I726P","2^","2°",5184.16,170,130.62800000000001,"Rea Chiara","Via Cassia N° 115","Sinalunga","Secondaria 2^","2°","Promossa","Nocera Inferiore",3478003831,"via del Poggio di Mezzo",49,null,"Cappuccio Giovanna","CPPGNN73P68F913O"]
[77,"REASRA02M71I726F","2^","1°",5184.16,280,215.15200000000002,"Rea Sara","Via Cassia N° 115","Sinalunga","Secondaria 2^","1°","Promossa","Nocera Inferiore",3313651766,null,48,null,"Cappuccio Giovanna","CPPGNN73P68F913O"]
[78,"BLDSRA05E63I726Z","1^","2°",5247.41,150,115.26,"Abdallah Sara","Via dello Spedale N° 17","Sinalunga","Secondaria 1^","2°","Promossa","Sinalunga",3387509977,null,122,null,"Abdallah Smail","BDLSML57E29Z330M"]
[79,"PLLCRS02B16G752U","2^","2°",5258.65,170,130.62800000000001,"Pallone Christian","Via V.Emanuele II N° 10","Sinalunga","Secondaria 2^","2°",null,"Chianciano",32994909048,null,63,"Sospensione del Giudizio","Panariello Elvira","PNRLVR70C48L259T"]
[80,"PLLRSO03S47I726K","2^","1°",5258.65,280,215.15200000000002,"Pallone Rosa","Via V.Emanuele II N° 10","Sinalunga","Secondaria 2^","1°","Promossa","Chianciano",39372246207,null,62,null,"Panariello Elvira","PNRLVR70C48L259T"]
[81,"CPPMGR01M49I726Y","2^","3°",5412.67,190,145.99600000000001,"Coppola Maria Grazia","Via Guerrazzi N° 31","Sinalunga","Secondaria 2^","3°","Promossa","Siena",3471061121,577658068,30,"Sospensione del Giudizio","Coppola Vincenzo","CPPVCN78B14C129S"]
[82,"CPPMRN05L47F592P","1^","2°",5412.67,150,115.26,"Coppola Marina","Via Guerrazzi N° 31","Sinalunga","Secondaria 1^","2°","Promossa","Sinalunga",3471061121,577658067,31,null,"Coppola Vincenzo","CPPVCN78B14C129S"]
[83,"CPPMHL02T45C129S","2^","2°",5412.67,170,130.62800000000001,"Coppola Michela","Via Guerrazzi N° 31","Sinalunga","Secondaria 2^","2°","Promosso","Cortona",3401049340,null,29,"Sospensione del Giudizio","Coppola Vincenzo","CPPVCN78B14C129S"]
[84,"MROLDN04E09Z160O","1^","3°",5500.98,150,115.26,"Omeri Almedin","Via Po N° 32","Sinalunga","Secondaria 1^","3°","Promosso","Sinalunga",3296169116,null,150,null,"Omeri Bajram","MROBRM72C20Z160W"]
[85,"MROSNT00A01Z160H","2^","4°",5500.98,190,145.99600000000001,"Omeri Sunsit","Via PO N° 32","Sinalunga","Secondaria 2^","4°","Promosso","Foiano della Chiana",3275349868,null,151,null,"Omeri Bajram","MROBRM72C20Z160W"]
[86,"SNGNHD05R031F592S","1^","2°",5545.01,150,115.26,"Singh Anshdeep","Via Trasimeno N° 69","Sinalunga","Secondaria 1^","2°","Promosso","Bettolle",3336892892,null,102,null,"Singh Mohan","SNGMHN70E31Z222S"]
[87,"MCNMLL99S49Z129A","2^","4°",5605.2,190,145.99600000000001,"Mocanu Mihaela Alexandra","Via Mazzini N° 30","Sinalunga","Secondaria 2^","4°","Promossa","Arezzo",3883288911,577679988,76,null,"Mocanu Lenuta Claudia","MCNLTC78A60Z129S"]
[88,"BRIDNA06T49I726R","1^","1°",5783.87,210,161.364,"Ibra Adina","Via Dante N° 11","Sinalunga","Secondaria 1^","1°","Promossa","Sinalunga",3288857572,null,109,null,"Ibra Suhada","BRISHD85A48Z160Y"]
[89,"SNCMHL04R70I726D","1^","3°",5798.05,150,115.26,"Sanchez Tavarez Michel","Vicolo Castellina N°4","Sinalunga","Secondaria 1^","3°","Promosso","Sinalunga",3479636988,577630259,91,null,"Tavarez Lucia","TVRLCU64H65Z505D"]
[90,"NNSBSL02E054Z100R","2^","2°",5836.97,170,130.62800000000001,"Nanushi Brisilda","Via Belvedere N° 32","Sinalunga","Secondaria 2^","2°","Promossa","Arezzo",3487187688,null,141,null,"Nanushi Edmira","NNSDMR72C54Z100R"]
[91,"VNVVVN04P12Z115A","1^","3°",5879.34,150,115.26,"Ivanov Ivan Ivanov","Via Togliatti N° 23/A","Sinalunga","Secondaria 1^","3°","Promosso","Sinalunga",3427748811,null,2,null,"Vasilev Ivan Ivanov","VSLVVN83P21Z104H","Foiano della Chiana Via G. Di Vittorio nuova residenza"]
[92,"BCLNTS04B46F592D","1^","3°",5982.76,150,115.26,"Bucalo Anastasia","Via Trieste N° 187","Sinalunga","Secondaria 1^","3°","Promossa","Sinalunga",3408560670,577632058,14,null,"Cacace Cristina","CCCCST83E54A468U"]
[93,"NNCLRD06S26G752Z","1^","1°",5993.23,210,161.364,"Annicchiarico Leonardo","Via del Crocifisso N° 22","Sinalunga","Secondaria 1^","1°","Promosso","Sinalunga",3492207363,577636037,19,null,"Marano Marianna","MRNMNN80M62A509A"]
[94,"PSCRNS03T18H501J","1^","1°",6240,210,161.364,"Pascariu Rubens","Via Trasimeno N° 29","Sinalunga","Secondaria 1^","1°","Promosso","Bettolle",3207487692,null,68,null,"Pascariu Benoni","PSCBNN76E05Z129X"]
[95,"FCCLNE05E59A390J","1^","2°",6363.69,150,115.26,"Fucci Elena","Loc. Albergo N° 66","Sinalunga","Secondaria 1^","2°","Promossa","Sinalunga",3883814418,null,143,null,"Fucci Claudio","FCCCLD58D18E202N"]
[96,"FCCGAI01L42A390P","2^","3°",6363.69,190,145.99600000000001,"Fucci Gaia","Loc. Albergo N° 66","Sinalunga","Secondaria 2^","3°","Promosso","Chianciano",3296991421,null,139,null,"Fucci Claudio","FCCCLD58D18E202N"]
[97,"RSOLNZ06C12F592N","1^","1°",6413.01,210,161.364,"Oros Lorenzo Andrei","Via Borgo S.Marcellino N° 12","Sinalunga","Secondaria 1^","1°","Promosso","Sinalunga",3333272825,577660019,84,null,"Oros Adrian","RSODRN77P04Z129P"]
[98,"BMRBLW05E09Z330P","1^","2°",6560.35,150,115.26,"Boumarouane Abdelwahed","Via Curtatone N° 4","Sinalunga","Secondaria 1^","2°","Promosso","Sinalunga",3282925769,null,124,null,"Boumarouane Azedine ","BMRZDN78A01Z330X"]
[99,"GNCLRI05L69F592Z","1^","2°",6589.31,150,115.26,"Ganci Ilaria","Via Golgi N° 2","Sinalunga","Secondaria 1^","2°","Promossa","Sinalunga",3338254112,null,135,null,"Barcellona Agatina","BRCGTN79A58G273B"]
[100,"KRARND00E64Z222S","2^","4°",6779.88,190,145.99600000000001,"Kaur Ramandeep","Via Zara N° 22","Sinalunga","Secondaria 2^","4°","Promossa","Montepulciano",3317874448,null,33,"Sospensione del Giudizio","Singh Rajender","SNGRND65C06Z222B"]
[101,"SNGRVR03P01Z222Y","1^","3°",6779.88,150,115.26,"Singh Ranvir","Via Zara N° 22","Sinalunga","Secondaria 1^","3°","Promosso","Sinalunga",3471061121,577658068,32,null,"Singh Rajender","SNGRND65C06Z222B"]
[102,"PSCDTS05A20G274U","1^","1°",6807.92,210,161.364,"Pascariu Eduart Samuel","Via Trasimeno N 29/b","Sinalunga","Secondaria 1^","1°","Promosso","Sinalunga",3469838868,null,100,null,"Pascariu Samuiel","PSCSML79B04Z129A"]
[103,"NLOLRT05P01F592R","1^","2°",6809.47,150,115.26,"Noli Alberto","Via di Lucignano N° 9","Sinalunga","Secondaria 1^","2°","Promosso","Sinalunga",3388357734,null,56,null,"Voliani Kety","VLNKTY68L42E625D"]
[104,"NLOGDI02H66F592G","2^","2°",6809.47,170,130.62800000000001,"Noli Giada","Via di Lucignano N° 9","Sinalunga","Secondaria 2^","2°","Promossa","Arezzo",3271856804,null,57,null,"Voliani Kety","VLNKTY68L42E625D"]
[105,"MSFSFA96L43F656G","2^","5°",6857.47,190,145.99600000000001,"Masaaf Safaa","Via Golgi N° 1","Sinalunga","Secondaria 2^","5°","Promossa","Montepulciano",3923964091,null,133,null,"Masaaf Safaa","MSFSFA96L43F656G"]
[106,"MSFSHL05D01F656S","1^","2°",6857.47,150,115.26,"Masaaf Souhil","Via Golgi N° 2","Sinalunga","Secondaria 1^","2°","Promosso","Sinalunga",3337961299,577624682,134,null,"Maji Bouchra","MJABHR74R63Z330L"]
[107,"GNNMTT03S20I726Y","2^","1°",7001.64,280,215.15200000000002,"Giannetti Mattia","Via Vallina N° 91","Sinalunga","Secondaria 2^","1°","Promosso","Cortona",3492207363,577636037,18,null,"Giannetti Massimo","GNNMSM77S01A468Y"]
[108,"CNCBDT99A69I726U","2^","5°",7027.48,190,145.99600000000001,"Cencini Benedetta","Via Paganini N°","Sinalunga","Secondaria 2^","4°","Promossa","Siena",3479636988,577630259,92,"Sospensione del Giudizio","Leonelli Aurelia","LNLRLA66L61E435Y","Torrita Loc. Poggio Magliano n. 48"]
[109,"CNCCHR99A69I726D","2^","5°",7027.48,190,145.99600000000001,"Cencini Chiara","Via Paganini N°","Sinalunga","Secondaria 2^","4°","Promossa","Siena",3334140771,null,93,"Sospensione del Giudizio","Leonelli Aurelia","LNLRLA66L61E435Y","Torrira  Loc. Poggio Magliano n. 48"]
[110,"MRCDNN06A06I726L","1^","2°",7101.12,150,115.26,"Morchid Adnane","Piazza padella N° 7","Sinalunga","Secondaria 1^","2°","Promossa","Sinalunga",3383934297,577632198,54,null,"Idebdou Asmaa","DBDSMA68T43Z330F"]
[111,"MRCMMD04H05I726U","1^","3°",7101.12,150,115.26,"Morchid Mohamed Walid","Piazza padella N° 7","Sinalunga","Secondaria 1^","3°","Promosso","Sinalunga",3383934297,577632198,53,null,"Idebdou Asmaa","DBDSMA68T43Z330F"]
[112,"MRCRYN06A06I726D","1^","2°",7101.12,150,115.26,"Morchid Rayane","Piazza padella N° 7","Sinalunga","Secondaria 1^","2°","Promosso","Sinalunga",3388357734,null,55,null,"Idebdou Asmaa","DBDSMA68T43Z330F"]
[113,"MNDJSC99R44F592O","2^","5°",7163.69,190,145.99600000000001,"Mandalà Jessica","Via Ravenna N° 18","Sinalunga","Secondaria 2^","5°","Promossa","Cortona",3451852283,null,52,null,"Camarda Giuseppa","CMRGPP72M60G273O"]
[114,"PRNLCU05L05I726L","1^","2°",7583.89,150,115.26,"Pierini Luca","Piazza R. Margherita N° 3","Sinalunga","Secondaria 2^","2°","Promosso","Sinalunga",3466099057,577624665,138,null,"Pierini Luciano","PRNLCN63B12A468X"]
[115,"JRRJML03D12I726N","2^","1°",7605.85,280,215.15200000000002,"Jourairi Jamal","Via Fiume N° 16","Sinalunga","Secondaria 2^","1°","Promosso","Siena",3384675230,null,34,null,"Azedyou Khadija","ZDYKDJ77L68Z330J"]
[116,"DLVMHL01R45A390I","2^","3°",7703.38,190,145.99600000000001,"Di Leva Michela","Via Napoli N° 19b","Sinalunga","Secondaria 2^","3°","Promosso","Arezzo",3271856804,null,59,null,"Gargiulo Pascqualina","GRGPQL77B66G813B"]
[117,"DLVPRP03M25G752G","2^","1°",7703.38,280,215.15200000000002,"Di Leva Pietro Paolo","Via Napoli N° 19b","Sinalunga","Secondaria 2^","1°","Promosso","Montepulciano",39372246207,null,60,null,"Gargiulo Pasqualina","GRGPQL77B66G813B"]
[118,"BCCMHL00D67F592G","2^","2°",7771.88,170,130.62800000000001,"Bocchetti Michela","Via E.Ferrari N° 14","Sinalunga","Secondaria 2^","2°","Promossa","Cortona",3475319823,577663681,116,null,"Bocchetti Salvatore","BCCSVT64A24F839D"]
[119,"CLNDNL03P15D612L","2^","1°",7787.37,280,215.15200000000002,"Colangeli Daniele","Via A. Gramsci N° 10","Sinalunga","Secondaria 1^","1°","Promosso","Arezzo",3933961541,null,78,null,"Colangeli Alberto ","CLNLRT72E08H501L"]
[120,"PLCTTR06H13F592D","1^","1°",7912.63,210,161.364,"Paolucci Ettore","Via Serraglio N° 226","Sinalunga","Secondaria 1^","1°","Promosso","Sinalunga",347775795,null,20,null,"Viti Elisa","VTILSE75E60A468R"]
[121,"GRNJPR99A09A323T","2^","5°",8126.83,190,145.99600000000001,"Guron Jaspreet","Loc. Rigaiolo N° 31","Sinalunga","Secondaria 2^","5°","Promosso","Sinalunga",3886551024,"Controllare documento",101,null,"Guron Jaspreet","GRNJPR99A09A323T"]
[122,"SPGSVT06H07F592G","1^","1°",8718.74,210,161.364,"Spagnolo Salvatore","Via E. de Filippo N 1","Sinalunga","Secondaria 1^","1°","Promosso","Sinalunga",3398313677,null,8,null,"Calabrese Eliana","CLBLNE78C45F205R"]
[123,"SLMMNI04R63F592J","1^","2°",8873.9,150,115.26,"Salem Imane","Via Trasimeno N° 32","Sinalunga","Secondaria 1^","2°","Promosso","Bettolle",3204277190,null,128,null,"Salem Mohamed","SLMMMD66A01Z3P0O"]
[124,"SLMNSR03H08F592Z","2^","1°",8873.9,280,215.15200000000002,"Salem Nasser Eddine","Via Trasimeno N° 32","Sinalunga","Secondaria 2^","1°","Promosso","Siena",3204277190,null,127,null,"Salem Mohamed","SLMMMD66A01Z3P0O"]
[125,"VRDLCU03B20G478O","2^","1°",9075.7099999999991,280,215.15200000000002,"Verdi Luca","Loc. Giardino N° 81","Sinalunga","Secondaria 2^","1°","Promosso","Arezzo",3277169794,null,79,null,"Francini Paola","FRNPLA65R55I726B"]
[126,"GGRNSR96T03Z129L","2^","3°",9097.73,190,145.99600000000001,"Gigirtu Nicusor Daniel","Via Colle I N° 88","Sinalunga","Secondaria 2^","3°","Promosso","Foiano della Chiana",3271636216,5771651062,112,null,"Gigirtu Filofteia","GGRFFT76C71Z129T"]
[127,"GGRVDT98S01Z129J","2^","3°",9097.73,190,145.99600000000001,"Gigirtu Vladut Mihial","Via Colle I N° 88","Sinalunga","Secondaria 2^","3°","Promosso","Chianciano",3397190401,null,113,null,"Gigirtu Filofteia","GGRFFT76C71Z129T"]
[128,"DLSDVD06B16A515S","1^","1°",9220.15,210,161.364,"D'Alessio Davide","Via Gramsci N° 10","Sinalunga","Secondaria 1^","1°","Promosso","Sinalunga",3271331174,null,105,null,"Allegritti Fabiola","LLGFBL81D54A515K"]
[129,"PTRVMT06R04F592O","1^","1°",9228.3700000000008,210,161.364,"Petrov Ivan Mitev","Via Mazzini N° 10","Sinalunga","Secondaria 1^","1°","Promosso","Bettolle",3881173812,null,26,null,"Taneva Petya Ivanova","TNVPYV82S68Z104H"]
[130,"BCHRCR05A22F592A","1^","2°",9590.7800000000007,150,{"$f":"(F132*76.84/100)","v":115.26},"Becherini Riccardo","Via Cassia N° 157","Sinalunga","Secondaria 1^","1°","Promosso","Bettolle",3477771832,null,123,null,"Vizireanu Ana Elena","VZRNLN72M60Z129J"]
[131,"RCDRRA02R51C351U","2^","2°",9684.81,170,130.62800000000001,"Arcidiacono Aurora","Via Golgi N° 2","Sinalunga","Secondaria 2^","2°","Promossa","Arezzo",3290099435,null,129,"Sospensione del Giudizio","Crivello Angela","CRVNGL78H53G273U"]
[132,"BSCLCU99D04F592H","2^","4°",10002.040000000001,190,145.99600000000001,"Boscagli Luca","Via Ravenna N° 5","Sinalunga","Secondaria 2^","4°","Promosso","Cortona",3497791527,null,24,null,"Boscagli Luca","BSCLCU99D04F592H"]
[133,"MSKMNL03B04F592W","2^","1°",10242,280,215.15200000000002,"Musaku Emanuele","Via Boscgli N° 4","Sinalunga","Secondaria 2^","1°","Promosso","Siena",3895334926,null,10,null,"Sinameta Aida","SNMDAI76R67Z100F"]
[134,"TRADLL00P60F839F","2^","4°",10810.28,190,145.99600000000001,"Autiero Dalila","Via E. de Filippo N° 8","Sinalunga","Secondaria 2^","4°","Promossa","Montepulciano",3400687768,577630237,71,null,"Balderes Immacolata","BLDMCL76E41F839A"]
[135,"TRAMTT99M18F839L","2^","5°",10810.28,190,145.99600000000001,"Autiero Matteo","Via E. de Filippo N° 8","Sinalunga","Secondaria 2^","5°","Promosso","Siena",3452863920,577623396,72,null,"Balderes Immacolata","BLDMCL76E41F839A"]
[136,"GNONLS06B06F592Y","1^","1°",11078.57,210,161.364,"Gon Nicolas","Via Montegrappa N° 4","Sinalunga","Secondaria 1^","1°","Promosso","Sinalunga",3891677194,null,15,null,"Gon Fabio ","GNOFBA61P04F356A"]
[137,"GSICRN06H69F592C","1^","1°",11120.14,210,161.364,"Giso Caterina","Via Vallina N° 126","Sinalunga","Secondaria 1^","1°","Promossa","Sinalunga",3497208851,null,120,null,"Cutini Elena","CTNLNE73E60A390C"]
[138,"GSIMHL03R20F592J","2^","1°",11120.14,280,215.15200000000002,"Giso Michele","Via Vallina N° 126","Sinalunga","Secondaria 2^","1°","Promosso","Arezzo",3387509977,null,121,null,"Cutini Elena","CTNLNE73E60A390C"]
[139,"NKOMGE03E48Z100E","2^","1°",11187.32,280,215.15200000000002,"Noka Megi","Via E. Fermi N° 9c","Sinalunga","Secondaria 2^","1°","Promosso","Arezzo",3494375374,null,66,null,"Noka Vjollca","NKOVLL79A67Z100X"]
[140,"LFNLSSO6D05F592Z","1^","1°",11648.61,210,161.364,"Alfano Alessio","Via Dante N° 7","Sinalunga","Secondaria 1^","1°","Promosso","Sinalunga",3408560670,577632058,12,null,"Gambardella Anna","GMBNNA73P68E131L"]
[141,"LFNSFO02C49F592J","2^","2°",11648.61,170,130.62800000000001,"Alfano Sofia","Via Dante N° 7","Sinalunga","Secondaria 2^","2°","Promossa","Siena",3408560670,577632058,13,null,"Gambardella Anna","GMBNNA73P68E131L"]
[142,"GYUMMT99C67F592M","2^","5°",12627.2,190,145.99600000000001,"Gueye Mame Maty","Via Nencetti N° 26","Sinalunga","Secondaria 2^","5°","Promossa","Arezzo",3384675230,null,36,null,"Gueye Mame Maty","GYUMMT99C67F592M"]
[143,"CNNLSN02P67F592F","2^","2°",12654.95,170,130.62800000000001,"Cenni Alessandra","Via De Filippo N° 4","Sinalunga","Secondaria 2^",2,"Promossa","Arezzo",3883296671,null,38,"Sospensione del Giudizio","Cenni Stefano","CNNSFN70M24G964O"]
[144,"MRCNCL03R25D653W","2^","1°",12827.3,280,215.15200000000002,"Mercuri Nicola","Via trieste N° 16","Sinalunga","Secondaria 2^","1°","Promosso","Siena",3392425423,null,69,null,"Zappia Loredana","ZPPLDN71C70F106T"]
[145,"CRSBDT00T48F592B","2^","4°",13131.42,190,{"$f":"(F147*76.84/100)","v":145.99600000000001},"Cresti Benedetta","Via Emoriccia N° 289","Sinalunga","Secondaria 2^","4°","Promossa","Montepulciano",3497208851,null,119,null,"Cresti Silvano","CRSSVN53L06L384P"]
[146,"BLMLSM06R06I726H","1^","1°",13512.16,210,161.364,"Belmonte Alessandro","Via Ferrari N° 30","Sinalunga","Secondaria 1^","1°","Promosso","Sinalunga",3891677194,null,16,null,"Frisone Annalisa","FRSNLS78L50F839E"]
[147,"BLMNDR04R27I726K","1^","3°",13512.16,150,115.26,"Belmonte Andrea","Via Ferrari N° 30","Sinalunga","Secondaria 1^","3°","Promosso","Sinalunga",3381078244,null,17,null,"Frisone Annalisa","FRSNLS78L50F839E"]
[148,"SCRMTT04C25F592U","1^","3°",14252.23,150,115.26,"Scarpelli Matteo","Via Della speranza N° 4A","Sinalunga","Secondaria 1^","3°","Promosso","Sinalunga",3384675230,null,35,null,"Paolucci Francesca","PLCFNC75P70I726R"]
[149,"MCCLRT03D09G752Y","2^","1°",14747.54,280,215.15200000000002,"Meacci Alberto","Via R.Margherita N° 20","Sinalunga","Secondaria 2^","1°","Promosso","Siena",3890364798,null,94,null,"Meacci Marco","MCCMRC69R10F205A"]
[150,"MCCLSS00P27I726B","2^","4°",14747.54,190,145.99600000000001,"Meacci Alessio","Via R.Margherita N° 20","Sinalunga","Secondaria 2^","4°","Promosso","Arezzo",3383378471,null,95,null,"Marco Meacci","MCCMRC69R10F205A"]
[151,"FRNMLD01H70I726I","2^","3°",15659.77,null,0,"Francini Matilde","Via Dante N° 11","Sinalunga","Secondaria 2^","3°","Promossa","Montepulciano",3313650725,null,39,null,"Francini Francesca","FRNFNC73R48A468G"]
[null,null,null,null,null,{"$f":"SUM(F3:F153)","v":28730},{"$f":"SUM(G3:G153)","v":22076.131999999976}]

{"sheet":"Pacchetto-Scuola 2017-18","index":1,"n_rows":151,"n_cols":21,"rows_kept":151,"cut":false,"hidden":false,"merged":[[0,1,0,13],[0,16,0,19]]}
[null,"PACCHETTO SCUOLA per STUDENTI RESIDENTI NEL COMUNE DI SINALUNGA iscritti nell'anno scolastico 2017/2018 alle scuole secondarie di primo grado e secondo grado statali e paritarie localizzate nella Regione Toscana - LIQUIDAZIONE AVENTI DIRITTO DETERMINAZIONE N. 129 del 1.02.2018"]
["N°","Codice fiscale studente","Ordine e scolastico","Classe","Isee","Importo standard","Importo minimo 76,84%","Studente","Indirizzo","Comune","Scuola","Classe","Esito scolastico","Plesso","Cellulare","Fisso","Prot.","Nota Sospensione","Nome Cognome genitore","Cod. Fscale"]
[1,"BRCRRA00B69I726N","2^","4°",0,190,{"$f":"(F3*76.84/100)","v":145.99600000000001},"Buracchi Aurora","Via Chico Mendes N° 7","Sinalunga","Secondaria 2^","4°","Promossa","Siena",39372246207,null,61,null,"Buracchi Paolo","BRCPLA67M05A468Y"]
[2,"BRCMNL05L26G752V","1^","2°",0,150,{"$f":"(F4*76.84/100)","v":115.26},"Buracchi Manuel","Via Chico Mendes N° 7","Sinalunga","Secondaria 1^","2°","Promosso","Bettolle",3271856804,null,58,null,"Buracchi Paolo","BRCPLA67M05A468Y"]
[3,"DNISDR06P51F592Y","1^","1°",0,210,161.364,"Dini Asia Andrea","Via Bezzecca N° 30","Sinalunga","Secondaria 1^","1°","Promossa","Sinalunga",3407396061,null,6,null,"Dini Eleonora","DNILNR80A70A468T"]
[4,"GRDRNS03H24Z160C","2^","1°",0,280,215.15200000000002,"Gorde Ernes","Via Trento N° 229/A","Sinalunga","Secondaria 2^","1°","Promosso","Arezzo",3383378471,null,96,null,"Gorde Sacip","GRDSCP74L05Z118E"]
[5,"HSSSLM05C18F592O","1^","2°",0,150,115.26,"Houssni Islam","Via Trieste N° 82","Sinalunga","Secondaria 1^","2°","Promosso","Sinalunga",3283416412,null,126,null,"El Haddaoui Loubna","LHDLBN74R59Z330D"]
[6,"HSSSSM03A20Z330D","2^","1°",0,280,215.15200000000002,"Houssni Oussama","Via Trieste N° 82","Sinalunga","Secondaria 2^","1°","Promosso","Sinalunga",3338254112,null,137,null,"El Haddaoui Loubna","LHDLBN74R59Z330D"]
[7,"NNASST06T10F592I","1^","1°",0,210,161.364,"Nauni Sebastiano","Via Piave N° 17C","Sinalunga","Secondaria 1^","1°","Promosso","Sinalunga",3313966653,null,82,null,"Nauni Martine","NNAMTN79M56Z100H"]
[8,"NLOSNM06B46Z322B","1^","2°",0,150,115.26,"Noli Serenamaria","Via del popolo N° 14","Sinalunga","Secondaria 1^","2°","Promossa","Sinalunga",3282570572,null,117,null,"Kaingu Doris Kache","KNGDSK72D70Z322Y"]
[9,"NRTLSS05S10F592O","1^","2°",0,150,115.26,"Onorato Alessio","Loc. Poggio Basso 303/a","Sinalunga","Secondaria 1^","2°","Promosso","Sinalunga",3477933722,null,46,null,"De Simone Carla","DSMCRL70P51F839H"]
[10,"NRTNTN02P14G752K","2^","2°",0,170,130.62800000000001,"Onorato Antonio","Loc. Poggio Basso 303/a","Sinalunga","Secondaria 2^","2°","Promosso","Siena",3477933722,null,45,null,"De Simone Carla","DSMCRL70P51F839H"]
[11,"SRBDRD03T04F592Y","2^","1°",0,280,215.15200000000002,"Serban Edward Romeo","Loc. Pietreto N° 40","Sinalunga","Secondaria 2^","1°","Promosso","Siena",3485698371,null,75,null,"Serban Iulia Mihaela","SRBLHL74C45Z129D"]
[12,"SPRLLN02L56A024Y","2^","2°",0,170,130.62800000000001,"Speranza Liliana","Via Siena N° 80","Sinalunga","Secondaria 2^","2°","Promossa","Foiano della Chiana",3931248555,577623081,41,null,"Mennone Monica","MNNMNC74D56F639Z"]
[13,"SPRSVT02L16A024N","2^","2°",0,170,130.62800000000001,"Speranza Salvatore","Via Siena N° 80","Sinalunga","Secondaria 2^",2,"Promosso","Foiano della Chiana",3931248555,577623081,40,"Sospensione del Giudizio","Mennone Monica","MNNMNC74D56F639Z"]
[14,"TRRNCI06H13F592Z","1^","1°",0,210,161.364,"Terrosi Nico","Via Cassia N° 171","Sinalunga","Secondaria 1^","1°","Promosso","Bettolle",3290099435,null,130,null,"Cuseri Michela","CSRMHL73R63A390Z"]
[15,"BLZFLV05B18F839I","1^","3°",6.12,150,115.26,"Balzano Flavio","Via Trieste N° 172","Sinalunga","Secondaria 1^","3°","Promosso","Sinalunga",3271636216,5771651062,111,null,"Sergio Anna","SRGNNA80B59F839O"]
[16,"BLZGPP03L70F839S","2^","1°",6.12,280,215.15200000000002,"Balzano Giuseppina","Via Trieste N° 172","Sinalunga","Secondaria 2^","1°","Promossa","Montepulciano",3279747250,null,110,null,"Sergio Anna","SRGNNA80B59F839O"]
[17,"PLNLBT00R62Z100G","2^","3°",224.72,190,145.99600000000001,"Planasi Elizabeta","Via Trieste, N° 193","Sinalunga","Secondaria 2^","3°","Promossa","Montepulciano",3200474818,null,23,"Sospensione del Giudizio","Planasi Agron","PLNGRN71L11Z100G"]
[18,"MGHNSA06E24F592V","1^","1°",256.11,210,161.364,"Maghni Anas","Via Nencetti N° 19","Sinalunga","Secondaria 1^","1°","Promosso","Sinalunga",3466099057,577624665,136,null,"Maghni Abbes","MGHBBS73A01Z330N"]
[19,"VCLGDI05H69F592P","1^","2°",321.02,150,115.26,"Vocile Giada","Loc. Ceppi N° 272B","Sinalunga","Secondaria 1^","2°","Promossa","Sinalunga",3406604369,577623254,145,null,"D'Agostino Carmela","DGSCML73C50Z133S"]
[20,"LZEDLP06P14Z100C","1^","1°",541.95000000000005,210,161.364,"Elezi Dalip","Via Nencetti N° 26","Sinalunga","Secondaria 1^","2°","Promosso","Sinalunga",3933961541,null,77,null,"Elezi Suzana","LZESZN79A42Z100Y"]
[21,"KPLSRA05R58Z158E","1^","2°",569.91,150,115.26,"Kaplani Sara","Via Colonna N° 89","Sinalunga","Secondaria 1^","2°","Promossa","Sinalunga",3883814418,null,144,null,"Kaplani Samir","KPLSMR78R04Z158J"]
[22,"DZLDNE05T16I726L","1^","2°",1255.4100000000001,150,115.26,"Dzeljo Edin","Via Ravenna N° 14 g","Sinalunga","Secondaria 1^","2°","Promosso","Bettolle",3383829843,null,148,null,"Dzeljo Zejdjan","DZLZDJ76D10Z158C"]
[23,"DZLMMD02E18Z158U","2^","2°",1255.4100000000001,170,130.62800000000001,"Dzeljo Mehmed","Via Ravenna N° 14 g","Sinalunga","Secondaria 2^","2°","Promosso","Siena",3296169116,null,149,null,"Dzeljo Zejdjan","DZLZDJ76D10Z158C"]
[24,"FRCLCU06B11F592H","1^","1°",1257.47,210,161.364,"Ferace Luca","Via Aurelio Saffi N° 4","Sinalunga","Secondaria 1^","1°","Promosso","Bettolle",3498223939,577660061,4,null,"Ferace Silvana Graciela","FRCSVN77A56Z600G"]
[25,"FRCNLS04M02F592A","1^","3°",1257.47,150,115.26,"Ferace Nicolas","Via Aurelio Saffi N° 4","Sinalunga","Secondaria 1^","3°","Promosso","Bettolle",3498223939,577660061,3,null,"Ferace Silvana Graciela","FRCSVN77A56Z600G"]
[26,"MRALSN02H03F592B","2^","2°",1257.47,170,130.62800000000001,"Mari Alessandro","Via Aurelio Saffi N° 4","Sinalunga","Secondaria 2^","2°","Promosso","Montepulciano",3427748811,null,1,null,"Ferace Silvana Graciela","FRCSVN77A56Z600G"]
[27,"DMALJN97S43Z160S","2^","5°",1346.99,190,145.99600000000001,"Ademi Aldijana","Via Ferrari N° 21","Sinalunga","Secondaria 2^","5°","Promossa","Sinalunga",3347350271,577660189,146,null,"Ademi Aldijana","DMALJN97S43Z160S"]
[28,"GRMSRN03L64F592O","2^","1°",1773.81,280,215.15200000000002,"Grimaldi Sharon","Via De Filippo N° 3","Sinalunga","Secondaria 2^","1°","Promossa","Foiano della Chiana",3200474818,null,22,null,"Grimaldi Umberto","GRMMRT60P15H431K"]
[29,"LNUMME04E52F592T","1^","3°",2056.5700000000002,150,115.26,"Luini Emma","Via Rossi N° 1","Sinalunga","Secondaria 1^","3°","Promossa","Sinalunga",3343489014,577679154,118,null,"Martini Lara","MRTLRA70D64A468L"]
[30,"RMNNMO03S57A024F","2^","1°",2139.71,280,215.15200000000002,"Romano Noemi","Via Trento N° 223","Sinalunga","Secondaria 2^","1°","Promossa","Montepulciano",3927894859,"Walter Tobagi 22 Rigomagno",88,null,"Cinquegrana Immacolata","CNQMMM82S63F839E"]
[31,"RMNTMS06T05D790D","1^","1°",2139.71,210,161.364,"Romano Tommaso","Via Trento N° 223","Sinalunga","Secondaria 1^","1°","Promosso","Sinalunga",3392520403,null,89,null,"Cinquegrana Immacolata","CNQMMM82S63F839E"]
[32,"LTMDNS03P12F592X","2^","1°",2264.5500000000002,280,215.15200000000002,"Latempa Dennis","Via Bezzecca N° 28","Sinalunga","Secondaria 2^","1°","Promosso","Arezzo",3923962395,null,107,null,"Peruzzi Elisabetta","PRZLBT82P44A468O"]
[33,"TMMLSE02T65F592J","2^","2°",2288.5,170,130.62800000000001,"Tammaro Elisa","Via dante N° 38","Sinalunga","Secondaria 2^","2°","Promossa","Siena",3200474818,null,21,null,"Riccarelli Elena","RCCLNE79D56A468H"]
[34,"SMOCRSS06A16G813Q","1^","1°",2432.79,210,161.364,"Osimo Christian","Via degli Etruschi N° 16","Sinalunga","Secondaria 1^","1°","Promosso","Sinalunga",3336892892,null,103,null,"Gladkova Natalya","GLDNLY75A45Z138F"]
[35,"CNCVLI01L51F592V","2^","3°",2447.87,190,145.99600000000001,"Cencini Viola","Via della Rocca N° 22","Sinalunga","Secondaria 2^","3°","Promossa","Montepulciano",3271331174,null,106,"Sospensione del Giudizio","Noli Stefania","NLOSFN69T41A468G"]
[36,"DMAMLA03A17Z160N","2^","1°",2757.19,280,215.15200000000002,"Ademi Amil","Via Trento N° 76","Sinalunga","Secondaria 2^","1°","Promosso","Montepulciano",32994909048,null,64,null,"Ademi Kimeta","DMAKMT78H63Z160Y"]
[37,"DMAJMN06M11Z160O","1^","1°",2757.19,210,161.364,"Ademi Jasmin","Via Trento N° 76","Sinalunga","Secondaria 1^","1°","Promosso","Sinalunga",3494375374,null,65,null,"Ademi Kimeta","DMAKMT78H63Z160Y"]
[38,"DNLFNC06M27I726H","1^","1°",2769.27,210,161.364,"D'Aniello Francesco","Via Saffi N° 10","Sinalunga","Secondaria 1^","1°","Promosso","Sinalunga",3313966653,null,83,null,"Bene Noemi","BNENMO66H46E041D"]
[39,"CRDJSC05S70I726Q","1^","2°",2808.78,150,115.26,"Corda Jessica","Loc. santarello N° 151","Sinalunga","Secondaria 1^","2°","Promossa","Sinalunga",3485698371,null,47,null,"Corda Giordano","CRDGDN72R20D827W"]
[40,"TRZNGL05C19F592C","1^","2°",2857.66,150,115.26,"Torzoni Angelo","Via Degli Etruschi N° 9","Sinalunga","Secondaria 1^","2°","Promosso","Sinalunga",3490893050,null,147,null,"Torzoni Alessandro ","TRZLSN75B03I726F"]
[41,"RSVMTN02A47F592C","2^","2°",3051.71,170,130.62800000000001,"Ruseva Martina Ruseva","Via Caselle alte N° 99","Sinalunga","Secondaria 2^","2°","Promossa","Montepulciano",3808907718,null,37,null,"Borisova Tanya Angelova","BRSTYN75H47Z104X"]
[42,"DNTCYS04L09G702G","1^","3°",3157.22,150,115.26,"D'Antonio Crystopher","Via Borgo S.Marcellino N° 1","Sinalunga","Secondaria 1^","3°","Promosso","Sinalunga",3452863920,577623396,74,null,"Turini Robertina","TRNRRT71H60Z112M"]
[43,"DNTJTH03H08G702C","2^","1°",3157.22,280,215.15200000000002,"D'Antonio Jonathan","Via Borgo S.Marcellino N° 1","Sinalunga","Secondaria 2^","1°","Promosso","Siena",3452863920,577623396,73,null,"Turini Robertina","TRNRRT71H60Z112M"]
[44,"FRMDNC00618A024O","2^","3°",3244.15,190,145.99600000000001,"Fraumeni Domenico","Via Ferrari N° 5","Sinalunga","Secondaria 2^",3,"Promosso","Foiano della Chiana",3881173812,null,27,null,"Vobbio Giuseppina Monia","VBBGPP76B60M208X"]
[45,"FRMMHL05C24D790K","1^","2°",3244.15,150,115.26,"Fraumeni Michele","Via Ferrari N° 5","Sinalunga","Secondaria 1^","2°","Promosso","Sinalunga",3401049339,null,28,null,"Vobbio Giuseppina Monia","VBBGPP76B60M208X"]
[46,"SNGLNB01A23Z222D","2^","2°",3348.98,170,130.62800000000001,"Singh Anmolbir","Via Trento N° 8","Sinalunga","Secondaria 2^","2°","Promosso","Foiano della Chiana",3397190401,null,114,null,"Singh Jagdish","SNGJDS60B25Z222L"]
[47,"RCCLNE01T45G752M","2^","3°",3386.1,190,145.99600000000001,"Riccio Elenia","Via della Libertà N° 10","Sinalunga","Secondaria 2^","3°","Promossa","Siena",3333738776,null,86,null,"Riccio Giuseppe","RCCGPP58S22F839X"]
[48,"DLIGPR05S28F592E","1^","2°",3402.94,150,115.26,"Di Leo Gianpiero","Via de Filippo N° 10","Sinalunga","Secondaria 1^","2°","Promosso","Sinalunga",3477933722,null,44,null,"Di Leo Giovanni","DLIGNN76E01A881F"]
[49,"LRSDTT99S54A399G","2^","4°",3562.34,190,145.99600000000001,"Lo Russo Diletta"," Via Mazzini N° 26","Sinalunga","Secondaria 2^","4°","Promossa","Cortona",347481985,null,11,null,"Lorusso Davide","LRSDVD68M24L589Y"]
[50,"SCRFRS06T12Z110Z","1^","1°",3599.27,210,161.364,"Scarselli Fares","Via Della Speranza N° 35","Sinalunga","Secondaria 1^","1°","Promosso","Sinalunga",3663387757,577631410,70,null,"Ouerghi Lynda","RGHLND72M49Z110Y"]
[51,"DOUMMD04S05I726M","1^","2°",3621.28,150,115.26,"Ouadii Mohamed","Via Paganini  N° 3","Sinalunga","Secondaria 1^","2°","Promosso","Sinalunga",3923964091,null,132,null,"El Manouni Touraya","LMNTRY70B62Z330V"]
[52,"DOUWSL01M49I726N","2^","2°",3621.28,170,130.62800000000001,"Ouadii Wissal","Via Paganini  N° 3","Sinalunga","Secondaria 2^","2°","Promosso","Chianciano",3384120632,null,131,"Sospensione del Giudizio","El Manouni Touraya","LMNTRY70B62Z330V"]
[53,"MRSSFN05T27F592G","1^ ","2°",3671.46,150,115.26,"Muresan Stefano Giovanni","Via P.Borsellino N° 18","Sinalunga","Secondaria 1^","2°","Promosso","Sinalunga",3404876487,null,87,null,"Danculea Elena","DNCLNE78A53Z129Q"]
[54,"DNEBCH05C23Z330U","1^","1°",3764.52,210,161.364,"Ediani Abdechahid","Via Amendola N° 25","Sinalunga","Secondaria 1^","1°","Promosso","Sinalunga",3477933722,null,43,null,"Talha Aicha","TLHCHA68S42Z330L"]
[55,"DNECHM05C63Z330O","1^","2°",3764.52,150,115.26,"Ediani Chaimaa","Via Amendola N° 25","Sinalunga","Secondaria 1^","2°","Promossa","Sinalunga",3485698371,null,42,null,"Talha Aicha","TLHCHA68S42Z330L"]
[56,"VSTSGY03M22Z140C","1^","3°",3789.45,150,115.26,"Vesterli Sergey","Via Trento 54","Sinalunga","Secondaria 1^","3°","Promosso","Sinalunga",3333272825,577660019,85,null,"Vesterli Oxana","VSTXNO80B54Z255Y"]
[57,"MZZNSM01S66L259Y","2^","2°",3865.26,170,130.62800000000001,"Mazzacane Nives Maria","Via Cassia N° 115","Sinalunga","Secondaria 2^","2°","Promossa","Arezzo",3336892892,null,104,"Sospensione del Giudizio","Izzo Agnese","ZZIGNS81P61L259A"]
[58,"SBRYMN98T55F912N","2^","4°",3910.73,190,145.99600000000001,"Sabar Yasmin","Via Bezzecca N° 24","Sinalunga","Secondaria 2^","4°","Promosso","Siena",3711236171,null,80,null,"Sabar Abdelaziz","SBRBLZ66S13Z330Y"]
[59,"SBRMMD04M16F592V","1^","2°",3910.73,150,115.26,"Sabar Mohamad","Via Bezzecca N° 24","Sinalunga","Secondaria 1^","2°","Promosso","Sinalunga",3711236171,null,81,null,"Sabar Abdelaziz","SBRBLZ66S13Z330Y"]
[60,"LHRSRA03H55I726W","2^","1°",4198.25,280,215.15200000000002,"Lahrech Sara","Via Trieste N° 208","Sinalunga","Secondaria 2^","1°","Promossa","Montepulciano",3288857572,null,108,null,"Bounqourt Najat","BNQNJT75P45Z330U"]
[61,"SBRYAA00D47A390O","2^","4°",4421.7700000000004,190,145.99600000000001,"Sabar Aya","Via Tobagi N° 5","Sinalunga","Secondaria 2^","4°","Promossa","Siena",3402141209,null,97,null,"Sabar Noureddine","SBRNDD62L02Z330C"]
[62,"SBRDOU06T63I726B","1^","1°",4421.7700000000004,210,161.364,"Sabar Douaa","Via Tobagi N° 5","Sinalunga","Secondaria 1^","1°","Promossa","Sinalunga",3389099552,577678379,99,null,"Sabar Noureddine","SBRNDD62L02Z330C"]
[63,"SBRSFN02C05I726Y","2^","2°",4421.7700000000004,170,130.62800000000001,"Sabar Soufiane","Via Tobagi N° 5","Sinalunga","Secondaria 2^","2°","Promosso","Siena",3495408189,null,98,null,"Sabar Noureddine","SBRNDD62L02Z330C"]
[64,"BMRRFK98E31Z330H","2^","3°",4736.41,190,{"$f":"(F66*76.84/100)","v":145.99600000000001},"Boumarouan Rafik","Via Golgi N° 2","Sinalunga","Secondaria 2^","3°","Promossa","Foiano della Chiana",3398313677,null,7,null,"Fili Zahra","FLIZHR70A41Z330E"]
[65,"BMRYSR01R59Z330P","2^","3°",4736.41,190,145.99600000000001,"Boumarouan Youssra","Via Golgi N° 2","Sinalunga","Secondaria 2^","3°","Promosso","Arezzo",3895334926,null,9,"Sospensione del Giudizio","Fili Zahra","FLIZHR70A41Z330E"]
[66,"KMTLFR06L05F592V","1^","1°",4782.93,210,161.364,"Kamta Louis Franck","Via Vittorio Emanuele N° 8","Sinalunga","Secondaria 1^","1°","Promosso","Sinalunga",3296991421,null,140,null,"Makoungue Eugenie","MKNGNE85E57Z306Y"]
[67,"PRZYML03B41Z505Z","2^","1°",4788.6499999999996,280,215.15200000000002,"Perez Perez Yismel Darianna","Via Pio La Torre N° 3","Sinalunga","Secondaria 2^","1°","Promossa","Montepulciano",3283416412,null,125,null,"Perez Fajardo Anyeli","PRZNYL81L44Z505X"]
[68,"GNGMTT03M07F592D","2^","1°",4825.8100000000004,280,215.15200000000002,"Giangregorio Matteo","Via Tempora N° 19","Sinalunga","Secondaria 2^","1°","Promosso","Cortona",3889971418,null,5,null,"Ferace Maria Belen","FRCMBL78T68Z600H"]
[69,"BRBGAI05B59F592S","1^","2°",4916.1099999999997,150,115.26,"Biribicchi Gaia","Via Trasimeno N° 14","Sinalunga","Secondaria 1^","2°","Promossa","Bettolle",3312464039,null,25,null,"Piatti Cinzia","PTTCNZ62P66B243L"]
[70,"VCCCML00A52G273H","2^","4°",5084.92,190,145.99600000000001,"Vaccaro Carmela","Via Don Minzoni N° 59","Sinalunga","Secondaria 2^","4°","Promossa","Cortona",3249035518,null,50,null,"Camarda Maddalena","CMRMDL73R53G273Q"]
[71,"VCCMNL05T65G273U","1^","2°",5084.92,150,115.26,"Vaccaro Emanuela","Via Don Minzoni N° 59","Sinalunga","Secondaria 1^","2°","Promossa","Bettolle",3249035518,null,51,null,"Camarda Maddalena","CMRMDL73R53G273Q"]
[72,"GRPMCH04R61F839W","1^","3°",5133.82,150,115.26,"Grappa Maria Chiara","Via Togliatti N° 8","Sinalunga","Secondaria 1^","2°","Promossa","Bettolle",3883814418,null,142,null,"Grappa Davide","GRPDVD73S20F839E"]
[73,"RCCRNI02B48G752P","2^","2°",5144.8,170,130.62800000000001,"Riccarelli Irene","Loc. San Rocco N° 294/c","Sinalunga","Secondaria 2^","2°","Promossa","Siena",3345498664,null,90,null,"Riccarelli Carlo","RCCCRL59C27L384N"]
[74,"REACHR02M71I726P","2^","2°",5184.16,170,130.62800000000001,"Rea Chiara","Via Cassia N° 115","Sinalunga","Secondaria 2^","2°","Promossa","Nocera Inferiore",3478003831,"via del Poggio di Mezzo",49,null,"Cappuccio Giovanna","CPPGNN73P68F913O"]
[75,"REASRA02M71I726F","2^","1°",5184.16,280,215.15200000000002,"Rea Sara","Via Cassia N° 115","Sinalunga","Secondaria 2^","1°","Promossa","Nocera Inferiore",3313651766,null,48,null,"Cappuccio Giovanna","CPPGNN73P68F913O"]
[76,"BLDSRA05E63I726Z","1^","2°",5247.41,150,115.26,"Abdallah Sara","Via dello Spedale N° 17","Sinalunga","Secondaria 1^","2°","Promossa","Sinalunga",3387509977,null,122,null,"Abdallah Smail","BDLSML57E29Z330M"]
[77,"PLLCRS02B16G752U","2^","2°",5258.65,170,130.62800000000001,"Pallone Christian","Via V.Emanuele II N° 10","Sinalunga","Secondaria 2^","2°","Promosso","Chianciano",32994909048,null,63,"Sospensione del Giudizio","Panariello Elvira","PNRLVR70C48L259T"]
[78,"PLLRSO03S47I726K","2^","1°",5258.65,280,215.15200000000002,"Pallone Rosa","Via V.Emanuele II N° 10","Sinalunga","Secondaria 2^","1°","Promossa","Chianciano",39372246207,null,62,null,"Panariello Elvira","PNRLVR70C48L259T"]
[79,"CPPMGR01M49I726Y","2^","3°",5412.67,190,145.99600000000001,"Coppola Maria Grazia","Via Guerrazzi N° 31","Sinalunga","Secondaria 2^","3°","Promossa","Siena",3471061121,577658068,30,"Sospensione del Giudizio","Coppola Vincenzo","CPPVCN78B14C129S"]
[80,"CPPMRN05L47F592P","1^","2°",5412.67,150,115.26,"Coppola Marina","Via Guerrazzi N° 31","Sinalunga","Secondaria 1^","2°","Promossa","Sinalunga",3471061121,577658067,31,null,"Coppola Vincenzo","CPPVCN78B14C129S"]
[81,"CPPMHL02T45C129S","2^","2°",5412.67,170,130.62800000000001,"Coppola Michela","Via Guerrazzi N° 31","Sinalunga","Secondaria 2^","2°","Promosso","Cortona",3401049340,null,29,"Sospensione del Giudizio","Coppola Vincenzo","CPPVCN78B14C129S"]
[82,"MROLDN04E09Z160O","1^","3°",5500.98,150,115.26,"Omeri Almedin","Via Po N° 32","Sinalunga","Secondaria 1^","3°","Promosso","Sinalunga",3296169116,null,150,null,"Omeri Bajram","MROBRM72C20Z160W"]
[83,"MROSNT00A01Z160H","2^","4°",5500.98,190,145.99600000000001,"Omeri Sunsit","Via PO N° 32","Sinalunga","Secondaria 2^","4°","Promosso","Foiano della Chiana",3275349868,null,151,null,"Omeri Bajram","MROBRM72C20Z160W"]
[84,"SNGNHD05R031F592S","1^","2°",5545.01,150,115.26,"Singh Anshdeep","Via Trasimeno N° 69","Sinalunga","Secondaria 1^","2°","Promosso","Bettolle",3336892892,null,102,null,"Singh Mohan","SNGMHN70E31Z222S"]
[85,"MCNMLL99S49Z129A","2^","4°",5605.2,190,145.99600000000001,"Mocanu Mihaela Alexandra","Via Mazzini N° 30","Sinalunga","Secondaria 2^","4°","Promossa","Arezzo",3883288911,577679988,76,null,"Mocanu Lenuta Claudia","MCNLTC78A60Z129S"]
[86,"BRIDNA06T49I726R","1^","1°",5783.87,210,161.364,"Ibra Adina","Via Dante N° 11","Sinalunga","Secondaria 1^","1°","Promossa","Sinalunga",3288857572,null,109,null,"Ibra Suhada","BRISHD85A48Z160Y"]
[87,"SNCMHL04R70I726D","1^","3°",5798.05,150,115.26,"Sanchez Tavarez Michel","Vicolo Castellina N°4","Sinalunga","Secondaria 1^","3°","Promosso","Sinalunga",3479636988,577630259,91,null,"Tavarez Lucia","TVRLCU64H65Z505D"]
[88,"NNSBSL02E054Z100R","2^","2°",5836.97,170,130.62800000000001,"Nanushi Brisilda","Via Belvedere N° 32","Sinalunga","Secondaria 2^","2°","Promossa","Arezzo",3487187688,null,141,null,"Nanushi Edmira","NNSDMR72C54Z100R"]
[89,"VNVVVN04P12Z115A","1^","3°",5879.34,150,115.26,"Ivanov Ivan Ivanov","Via Togliatti N° 23/A","Sinalunga","Secondaria 1^","3°","Promosso","Sinalunga",3427748811,null,2,null,"Vasilev Ivan Ivanov","VSLVVN83P21Z104H","Foiano della Chiana Via G. Di Vittorio nuova residenza"]
[90,"BCLNTS04B46F592D","1^","3°",5982.76,150,115.26,"Bucalo Anastasia","Via Trieste N° 187","Sinalunga","Secondaria 1^","3°","Promossa","Sinalunga",3408560670,577632058,14,null,"Cacace Cristina","CCCCST83E54A468U"]
[91,"NNCLRD06S26G752Z","1^","1°",5993.23,210,161.364,"Annicchiarico Leonardo","Via del Crocifisso N° 22","Sinalunga","Secondaria 1^","1°","Promosso","Sinalunga",3492207363,577636037,19,null,"Marano Marianna","MRNMNN80M62A509A"]
[92,"PSCRNS03T18H501J","1^","1°",6240,210,161.364,"Pascariu Rubens","Via Trasimeno N° 29","Sinalunga","Secondaria 1^","1°","Promosso","Bettolle",3207487692,null,68,null,"Pascariu Benoni","PSCBNN76E05Z129X"]
[93,"FCCLNE05E59A390J","1^","2°",6363.69,150,115.26,"Fucci Elena","Loc. Albergo N° 66","Sinalunga","Secondaria 1^","2°","Promossa","Sinalunga",3883814418,null,143,null,"Fucci Claudio","FCCCLD58D18E202N"]
[94,"FCCGAI01L42A390P","2^","3°",6363.69,190,145.99600000000001,"Fucci Gaia","Loc. Albergo N° 66","Sinalunga","Secondaria 2^","3°","Promosso","Chianciano",3296991421,null,139,null,"Fucci Claudio","FCCCLD58D18E202N"]
[95,"RSOLNZ06C12F592N","1^","1°",6413.01,210,161.364,"Oros Lorenzo Andrei","Via Borgo S.Marcellino N° 12","Sinalunga","Secondaria 1^","1°","Promosso","Sinalunga",3333272825,577660019,84,null,"Oros Adrian","RSODRN77P04Z129P"]
[96,"BMRBLW05E09Z330P","1^","2°",6560.35,150,115.26,"Boumarouane Abdelwahed","Via Curtatone N° 4","Sinalunga","Secondaria 1^","2°","Promosso","Sinalunga",3282925769,null,124,null,"Boumarouane Azedine ","BMRZDN78A01Z330X"]
[97,"GNCLRI05L69F592Z","1^","2°",6589.31,150,115.26,"Ganci Ilaria","Via Golgi N° 2","Sinalunga","Secondaria 1^","2°","Promossa","Sinalunga",3338254112,null,135,null,"Barcellona Agatina","BRCGTN79A58G273B"]
[98,"KRARND00E64Z222S","2^","4°",6779.88,190,145.99600000000001,"Kaur Ramandeep","Via Zara N° 22","Sinalunga","Secondaria 2^","4°","Promossa","Montepulciano",3317874448,null,33,"Sospensione del Giudizio","Singh Rajender","SNGRND65C06Z222B"]
[99,"SNGRVR03P01Z222Y","1^","3°",6779.88,150,115.26,"Singh Ranvir","Via Zara N° 22","Sinalunga","Secondaria 1^","3°","Promosso","Sinalunga",3471061121,577658068,32,null,"Singh Rajender","SNGRND65C06Z222B"]
[100,"PSCDTS05A20G274U","1^","1°",6807.92,210,161.364,"Pascariu Eduart Samuel","Via Trasimeno N 29/b","Sinalunga","Secondaria 1^","1°","Promosso","Sinalunga",3469838868,null,100,null,"Pascariu Samuiel","PSCSML79B04Z129A"]
[101,"NLOLRT05P01F592R","1^","2°",6809.47,150,115.26,"Noli Alberto","Via di Lucignano N° 9","Sinalunga","Secondaria 1^","2°","Promosso","Sinalunga",3388357734,null,56,null,"Voliani Kety","VLNKTY68L42E625D"]
[102,"NLOGDI02H66F592G","2^","2°",6809.47,170,130.62800000000001,"Noli Giada","Via di Lucignano N° 9","Sinalunga","Secondaria 2^","2°","Promossa","Arezzo",3271856804,null,57,null,"Voliani Kety","VLNKTY68L42E625D"]
[103,"MSFSFA96L43F656G","2^","5°",6857.47,190,145.99600000000001,"Masaaf Safaa","Via Golgi N° 1","Sinalunga","Secondaria 2^","5°","Promossa","Montepulciano",3923964091,null,133,null,"Masaaf Safaa","MSFSFA96L43F656G"]
[104,"MSFSHL05D01F656S","1^","2°",6857.47,150,115.26,"Masaaf Souhil","Via Golgi N° 2","Sinalunga","Secondaria 1^","2°","Promosso","Sinalunga",3337961299,577624682,134,null,"Maji Bouchra","MJABHR74R63Z330L"]
[105,"GNNMTT03S20I726Y","2^","1°",7001.64,280,215.15200000000002,"Giannetti Mattia","Via Vallina N° 91","Sinalunga","Secondaria 2^","1°","Promosso","Cortona",3492207363,577636037,18,null,"Giannetti Massimo","GNNMSM77S01A468Y"]
[106,"CNCBDT99A69I726U","2^","5°",7027.48,190,145.99600000000001,"Cencini Benedetta","Via Paganini N°","Sinalunga","Secondaria 2^","5°","Promossa","Siena",3479636988,577630259,92,"Sospensione del Giudizio","Leonelli Aurelia","LNLRLA66L61E435Y","Torrita Loc. Poggio Magliano n. 48"]
[107,"CNCCHR99A69I726D","2^","5°",7027.48,190,145.99600000000001,"Cencini Chiara","Via Paganini N°","Sinalunga","Secondaria 2^","5°","Promossa","Siena",3334140771,null,93,"Sospensione del Giudizio","Leonelli Aurelia","LNLRLA66L61E435Y","Torrira  Loc. Poggio Magliano n. 48"]
[108,"MRCDNN06A06I726L","1^","2°",7101.12,150,115.26,"Morchid Adnane","Piazza padella N° 7","Sinalunga","Secondaria 1^","2°","Promossa","Sinalunga",3383934297,577632198,54,null,"Idebdou Asmaa","DBDSMA68T43Z330F"]
[109,"MRCMMD04H05I726U","1^","3°",7101.12,150,115.26,"Morchid Mohamed Walid","Piazza padella N° 7","Sinalunga","Secondaria 1^","3°","Promosso","Sinalunga",3383934297,577632198,53,null,"Idebdou Asmaa","DBDSMA68T43Z330F"]
[110,"MRCRYN06A06I726D","1^","2°",7101.12,150,115.26,"Morchid Rayane","Piazza padella N° 7","Sinalunga","Secondaria 1^","2°","Promosso","Sinalunga",3388357734,null,55,null,"Idebdou Asmaa","DBDSMA68T43Z330F"]
[111,"MNDJSC99R44F592O","2^","5°",7163.69,190,145.99600000000001,"Mandalà Jessica","Via Ravenna N° 18","Sinalunga","Secondaria 2^","5°","Promossa","Cortona",3451852283,null,52,null,"Camarda Giuseppa","CMRGPP72M60G273O"]
[112,"PRNLCU05L05I726L","1^","2°",7583.89,150,115.26,"Pierini Luca","Piazza R. Margherita N° 3","Sinalunga","Secondaria 1^","2°","Promosso","Sinalunga",3466099057,577624665,138,null,"Pierini Luciano","PRNLCN63B12A468X"]
[113,"JRRJML03D12I726N","2^","1°",7605.85,280,215.15200000000002,"Jourairi Jamal","Via Fiume N° 16","Sinalunga","Secondaria 2^","1°","Promosso","Siena",3384675230,null,34,null,"Azedyou Khadija","ZDYKDJ77L68Z330J"]
[114,"DLVMHL01R45A390I","2^","3°",7703.38,190,145.99600000000001,"Di Leva Michela","Via Napoli N° 19b","Sinalunga","Secondaria 2^","3°","Promosso","Arezzo",3271856804,null,59,null,"Gargiulo Pascqualina","GRGPQL77B66G813B"]
[115,"DLVPRP03M25G752G","2^","1°",7703.38,280,215.15200000000002,"Di Leva Pietro Paolo","Via Napoli N° 19b","Sinalunga","Secondaria 2^","1°","Promosso","Montepulciano",39372246207,null,60,null,"Gargiulo Pasqualina","GRGPQL77B66G813B"]
[116,"BCCMHL00D67F592G","2^","2°",7771.88,170,130.62800000000001,"Bocchetti Michela","Via E.Ferrari N° 14","Sinalunga","Secondaria 2^","2°","Promossa","Cortona",3475319823,577663681,116,null,"Bocchetti Salvatore","BCCSVT64A24F839D"]
[117,"CLNDNL03P15D612L","2^","1°",7787.37,280,215.15200000000002,"Colangeli Daniele","Via A. Gramsci N° 10","Sinalunga","Secondaria 1^","1°","Promosso","Arezzo",3933961541,null,78,null,"Colangeli Alberto ","CLNLRT72E08H501L"]
[118,"PLCTTR06H13F592D","1^","1°",7912.63,210,161.364,"Paolucci Ettore","Via Serraglio N° 226","Sinalunga","Secondaria 1^","1°","Promosso","Sinalunga",347775795,null,20,null,"Viti Elisa","VTILSE75E60A468R"]
[119,"GRNJPR99A09A323T","2^","5°",8126.83,190,145.99600000000001,"Guron Jaspreet","Loc. Rigaiolo N° 31","Sinalunga","Secondaria 2^","5°","Promosso","Sinalunga",3886551024,"Controllare documento",101,null,"Guron Jaspreet","GRNJPR99A09A323T"]
[120,"SPGSVT06H07F592G","1^","1°",8718.74,210,161.364,"Spagnolo Salvatore","Via E. de Filippo N 1","Sinalunga","Secondaria 1^","1°","Promosso","Sinalunga",3398313677,null,8,null,"Calabrese Eliana","CLBLNE78C45F205R"]
[121,"SLMMNI04R63F592J","1^","2°",8873.9,150,115.26,"Salem Imane","Via Trasimeno N° 32","Sinalunga","Secondaria 1^","2°","Promosso","Bettolle",3204277190,null,128,null,"Salem Mohamed","SLMMMD66A01Z3P0O"]
[122,"SLMNSR03H08F592Z","2^","1°",8873.9,280,215.15200000000002,"Salem Nasser Eddine","Via Trasimeno N° 32","Sinalunga","Secondaria 2^","1°","Promosso","Siena",3204277190,null,127,null,"Salem Mohamed","SLMMMD66A01Z3P0O"]
[123,"VRDLCU03B20G478O","2^","1°",9075.7099999999991,280,215.15200000000002,"Verdi Luca","Loc. Giardino N° 81","Sinalunga","Secondaria 2^","1°","Promosso","Arezzo",3277169794,null,79,null,"Francini Paola","FRNPLA65R55I726B"]
[124,"GGRNSR96T03Z129L","2^","3°",9097.73,190,145.99600000000001,"Gigirtu Nicusor Daniel","Via Colle I N° 88","Sinalunga","Secondaria 2^","3°","Promosso","Foiano della Chiana",3271636216,5771651062,112,null,"Gigirtu Filofteia","GGRFFT76C71Z129T"]
[125,"GGRVDT98S01Z129J","2^","3°",9097.73,190,145.99600000000001,"Gigirtu Vladut Mihial","Via Colle I N° 88","Sinalunga","Secondaria 2^","3°","Promosso","Chianciano",3397190401,null,113,null,"Gigirtu Filofteia","GGRFFT76C71Z129T"]
[126,"DLSDVD06B16A515S","1^","1°",9220.15,210,161.364,"D'Alessio Davide","Via Gramsci N° 10","Sinalunga","Secondaria 1^","1°","Promosso","Sinalunga",3271331174,null,105,null,"Allegritti Fabiola","LLGFBL81D54A515K"]
[127,"PTRVMT06R04F592O","1^","1°",9228.3700000000008,210,161.364,"Petrov Ivan Mitev","Via Mazzini N° 10","Sinalunga","Secondaria 1^","1°","Promosso","Bettolle",3881173812,null,26,null,"Taneva Petya Ivanova","TNVPYV82S68Z104H"]
[128,"BCHRCR05A22F592A","1^","2°",9590.7800000000007,150,{"$f":"(F130*76.84/100)","v":115.26},"Becherini Riccardo","Via Cassia N° 157","Sinalunga","Secondaria 1^","2°","Promosso","Bettolle",3477771832,null,123,null,"Vizireanu Ana Elena","VZRNLN72M60Z129J"]
[129,"RCDRRA02R51C351U","2^","2°",9684.81,170,130.62800000000001,"Arcidiacono Aurora","Via Golgi N° 2","Sinalunga","Secondaria 2^","2°","Promossa","Arezzo",3290099435,null,129,"Sospensione del Giudizio","Crivello Angela","CRVNGL78H53G273U"]
[130,"BSCLCU99D04F592H","2^","4°",10002.040000000001,190,145.99600000000001,"Boscagli Luca","Via Ravenna N° 5","Sinalunga","Secondaria 2^","4°","Promosso","Cortona",3497791527,null,24,null,"Boscagli Luca","BSCLCU99D04F592H"]
[131,"MSKMNL03B04F592W","2^","1°",10242,280,215.15200000000002,"Musaku Emanuele","Via Boscgli N° 4","Sinalunga","Secondaria 2^","1°","Promosso","Siena",3895334926,null,10,null,"Sinameta Aida","SNMDAI76R67Z100F"]
[132,"TRADLL00P60F839F","2^","4°",10810.28,190,145.99600000000001,"Autiero Dalila","Via E. de Filippo N° 8","Sinalunga","Secondaria 2^","4°","Promossa","Montepulciano",3400687768,577630237,71,null,"Balderes Immacolata","BLDMCL76E41F839A"]
[133,"TRAMTT99M18F839L","2^","5°",10810.28,190,145.99600000000001,"Autiero Matteo","Via E. de Filippo N° 8","Sinalunga","Secondaria 2^","5°","Promosso","Siena",3452863920,577623396,72,null,"Balderes Immacolata","BLDMCL76E41F839A"]
[134,"GNONLS06B06F592Y","1^","1°",11078.57,210,161.364,"Gon Nicolas","Via Montegrappa N° 4","Sinalunga","Secondaria 1^","1°","Promosso","Sinalunga",3891677194,null,15,null,"Gon Fabio ","GNOFBA61P04F356A"]
[135,"GSICRN06H69F592C","1^","1°",11120.14,210,161.364,"Giso Caterina","Via Vallina N° 126","Sinalunga","Secondaria 1^","1°","Promossa","Sinalunga",3497208851,null,120,null,"Cutini Elena","CTNLNE73E60A390C"]
[136,"GSIMHL03R20F592J","2^","1°",11120.14,280,215.15200000000002,"Giso Michele","Via Vallina N° 126","Sinalunga","Secondaria 2^","1°","Promosso","Arezzo",3387509977,null,121,null,"Cutini Elena","CTNLNE73E60A390C"]
[137,"NKOMGE03E48Z100E","2^","1°",11187.32,280,215.15200000000002,"Noka Megi","Via E. Fermi N° 9c","Sinalunga","Secondaria 2^","1°","Promosso","Arezzo",3494375374,null,66,null,"Noka Vjollca","NKOVLL79A67Z100X"]
[138,"LFNLSSO6D05F592Z","1^","1°",11648.61,210,161.364,"Alfano Alessio","Via Dante N° 7","Sinalunga","Secondaria 1^","1°","Promosso","Sinalunga",3408560670,577632058,12,null,"Gambardella Anna","GMBNNA73P68E131L"]
[139,"LFNSFO02C49F592J","2^","2°",11648.61,170,130.62800000000001,"Alfano Sofia","Via Dante N° 7","Sinalunga","Secondaria 2^","2°","Promossa","Siena",3408560670,577632058,13,null,"Gambardella Anna","GMBNNA73P68E131L"]
[140,"GYUMMT99C67F592M","2^","5°",12627.2,190,145.99600000000001,"Gueye Mame Maty","Via Nencetti N° 26","Sinalunga","Secondaria 2^","5°","Promossa","Arezzo",3384675230,null,36,null,"Gueye Mame Maty","GYUMMT99C67F592M"]
[141,"CNNLSN02P67F592F","2^","2°",12654.95,170,130.62800000000001,"Cenni Alessandra","Via De Filippo N° 4","Sinalunga","Secondaria 2^","2°","Promossa","Arezzo",3883296671,null,38,"Sospensione del Giudizio","Cenni Stefano","CNNSFN70M24G964O"]
[142,"MRCNCL03R25D653W","2^","1°",12827.3,280,215.15200000000002,"Mercuri Nicola","Via trieste N° 16","Sinalunga","Secondaria 2^","1°","Promosso","Siena",3392425423,null,69,null,"Zappia Loredana","ZPPLDN71C70F106T"]
[143,"CRSBDT00T48F592B","2^","4°",13131.42,190,{"$f":"(F145*76.84/100)","v":145.99600000000001},"Cresti Benedetta","Via Emoriccia N° 289","Sinalunga","Secondaria 2^","4°","Promossa","Montepulciano",3497208851,null,119,null,"Cresti Silvano","CRSSVN53L06L384P"]
[144,"BLMLSM06R06I726H","1^","1°",13512.16,210,161.364,"Belmonte Alessandro","Via Ferrari N° 30","Sinalunga","Secondaria 1^","1°","Promosso","Sinalunga",3891677194,null,16,null,"Frisone Annalisa","FRSNLS78L50F839E"]
[145,"BLMNDR04R27I726K","1^","3°",13512.16,150,115.26,"Belmonte Andrea","Via Ferrari N° 30","Sinalunga","Secondaria 1^","3°","Promosso","Sinalunga",3381078244,null,17,null,"Frisone Annalisa","FRSNLS78L50F839E"]
[146,"SCRMTT04C25F592U","1^","3°",14252.23,150,115.26,"Scarpelli Matteo","Via Della speranza N° 4A","Sinalunga","Secondaria 1^","3°","Promosso","Sinalunga",3384675230,null,35,null,"Paolucci Francesca","PLCFNC75P70I726R"]
[147,"MCCLRT03D09G752Y","2^","1°",14747.54,280,215.15200000000002,"Meacci Alberto","Via R.Margherita N° 20","Sinalunga","Secondaria 2^","1°","Promosso","Siena",3890364798,null,94,null,"Meacci Marco","MCCMRC69R10F205A"]
[148,"MCCLSS00P27I726B","2^","4°",14747.54,190,145.99600000000001,"Meacci Alessio","Via R.Margherita N° 20","Sinalunga","Secondaria 2^","4°","Promosso","Arezzo",3383378471,null,95,null,"Marco Meacci","MCCMRC69R10F205A"]
[null,null,null,null,null,{"$f":"SUM(F3:F150)","v":28730},{"$f":"SUM(G3:G150)","v":22076.131999999976}]

{"sheet":"Foglio2","index":2,"n_rows":18,"n_cols":20,"rows_kept":18,"cut":false,"hidden":false,"merged":[]}
["Estratti a campione"]
["N°","Codice fiscale studente","Ordine e scolastico","Classe","Isee","Importo standard","Importo minimo 76,84%","Studente","Indirizzo","Comune","Scuola","Classe","Esito scolastico","Plesso","Cellulare","Fisso","Prot.","Nota Sospensione","Nome Cognome genitore","Cod. Fscale"]
[]
[133,"MSKMNL03B04F592W","2^","1°",10242,280,{"$f":"(F4*76.84/100)","v":215.15200000000002},"Musaku Emanuele","Via Boscgli N° 4","Sinalunga","Secondaria 2^","1°","Promosso","Siena",3895334926,null,10,null,"Sinameta Aida","SMNDAI76R67Z100F"]
[77,"REASRA02M71I726F","2^","1°",5184.16,280,{"$f":"(F5*76.84/100)","v":215.15200000000002},"Rea Sara","Via Cassia N° 115","Sinalunga","Secondaria 2^","1°","Promossa","Nocera Inferiore",3313651766,null,48,null,"Cappuccio Giovanna","CPPGNN73P68F913O"]
[106,"MSFSHL05D01F656S","1^","2°",6857.47,150,115.26,"Masaaf Souhil","Via Golgi N° 2","Sinalunga","Secondaria 1^","2°","Promosso","Sinalunga",3337961299,577624682,134,null,"Maji Bouchra","MJABHR74R63Z330L"]
[150,"MCCLSS00P27I726B","2^","4°",14747.54,190,145.99600000000001,"Meacci Alessio","Via R.Margherita N° 21","Sinalunga","Secondaria 2^","4°","Promosso","Arezzo",3383378471,null,95,null,"Marco Meacci","MCCMRC69R10F205A"]
[103,"NLOLRT05P01F592R","1^","2°",6809.47,150,115.26,"Noli Alberto","Via di Lucignano N° 9","Sinalunga","Secondaria 1^","2°","Promosso","Sinalunga",3388357734,null,56,null,"Voliami Krty","VLNKTY68L42E625D"]
[114,"PRNLCU05L05I726L","2^","2°",7583.89,170,130.62800000000001,"Pierini Luca","Piazza R. Margherita N° 3","Sinalunga","Secondaria 2^","2°","Promosso","Sinalunga",3466099057,577624665,138,null,"Pierini Luciano","PRNLCN63B12A468X"]
[135,"TRAMTT99M18F839L","2^","5°",10810.28,190,145.99600000000001,"Autiero Matteo","Via E. de Filippo N° 9","Sinalunga","Secondaria 2^","5°","Promosso","Siena",3452863920,577623396,72,null,"Balderes Immacolata","BLDMCL76E41F839A"]
[111,"MRCMMD04H05I726U","1^","3°",7101.12,150,115.26,"Morchid Mohamed Walid","Piazza padella N° 7","Sinalunga","Secondaria 1^","3°","Promosso","Sinalunga",3383934297,577632198,53,null,"Idebdou Asmaa","DBDSMA68T43Z330F"]
[115,"JRRJML03D12I726N","2^","1°",7605.85,280,215.15200000000002,"Jourairi Jamal","Via Fiume N° 16","Sinalunga","Secondaria 2^","1°","Promosso","Siena",3384675230,null,34,null,"Azedyou Khadija","ZDYKDJ77L68Z330J"]
[47,"SNGLNB01A23Z222D","2^","1°",3348.98,280,215.15200000000002,"Singh Anmolbir","Via Trento N° 8","Sinalunga","Secondaria 2^","1°","Promosso","Foiano della Chiana",3397190401,null,114,null,"Singh Jagdish","SNGJDS60B25Z222L"]
[60,"SBRYMN98T55F912N","2^","4°",3910.73,190,145.99600000000001,"Sabar Jasmin","Via Bezzecca N° 24","Sinalunga","Secondaria 2^","4°","Promosso","Siena",3711236171,null,80,null,"Sabar Abdelaziz","SBRBLZ66S13Z330Y"]
[148,"SCRMTT04C25F592U","1^","3°",14252.23,150,115.26,"Scarpelli Matteo","Via Della speranza N° 4A","Sinalunga","Secondaria 1^","3°","Promosso","Sinalunga",3384675230,null,35,null,"Paolucci Francesca","PLCFNC75P70I726R"]
[58,"VSTSGY03M22Z140C","1^","3°",3789.45,150,115.26,"Vesterli Sergey","Via Trento 54","Sinalunga","Secondaria 1^","3°","Promosso","Sinalunga",3333272825,577660019,85,null,"Vesterli Oxana","VSTXNO80B54Z255Y"]
[113,"MNDJSC99R44F592O","2^","5°",7163.69,190,145.99600000000001,"Mandalà Jessica","Via Ravenna N° 18","Sinalunga","Secondaria 2^","5°","Promossa","Cortona",3451852283,null,52,null,"Camarda Giuseppa","CMRGPP72M60G273O"]
[2,"BRCMNL05L26G752V","1^","2°",0,150,115.26,"Buracchi Manuel","Via Chico Mendes N° 7","Sinalunga","Secondaria 1^","2°","Promosso","Bettolle",3271856804,null,58,null,"Buracchi Paolo","BRCPLA67M05A468Y"]

{"sheet":"Elenco per Etichette","index":3,"n_rows":266,"n_cols":11,"rows_kept":266,"cut":false,"hidden":false,"merged":[]}
["N°","Richiedente","Isee","Studente","Indirizzo","Ai Genitori di","Cap","Comune","Provincia","Cellulare","Fisso"]
[84,"Abdallah Adel",0,"Abdallah Khadija","via Lauretana 3 Rigaiolo","Ai Genitori di",53048,"Sinalunga","Si",3427748811]
[85,"Abdallah Adel",0,"Abdallah Obaiedallah","via Lauretana 3 Rigaiolo","Ai Genitori di",53048,"Sinalunga","Si",3427748811]
[121,"Abdallah Smail",5662.6,"Abdellah Rayan","via dello Spedale 17 Scrofiano","Ai Genitori di",53048,"Sinalunga","Si",3498223939,577660061]
[120,"Abdallah Smail",5662.6,"Abdellah Sara","via dello Spedale 17 Scrofiano","Ai Genitori di",53048,"Sinalunga","Si",3498223939,577660061]
[201,"Guerrero Ingrid Altagracia",0,"Abreo Guerrero Nicole","via Ttieste195 ","Ai Genitori di",53048,"Sinalunga","Si",3889971418]
[218,"Achache Mahmod",7136.99,"Achache Halima","Loc. Carpineta 62 Scrofiano","Ai Genitori di",53048,"Sinalunga","Si",3407396061]
[228,"Gambardella Anna",9640.32,"Alfano Alessio","via Dante 7","Ai Genitori di",53048,"Sinalunga","Si",3398313677]
[229,"Gambardella Anna",9640.32,"Alfano Sofia","via Dante 7","Ai Genitori di",53048,"Sinalunga","Si",3398313677]
[116,"Crivello Angela",2729.37,"Arcidiacono Aurora","via Golgi 2","Ai Genitori di",53048,"Sinalunga","Si",3895334926]
[117,"Crivello Angela",2729.37,"Arcidiacono Giada","via Golgi 2","Ai Genitori di",53048,"Sinalunga","Si",3895334926]
[142,"Barour Fatiha",4393.46,"Atif Bilal","via Golgi 1","Ai Genitori di",53048,"Sinalunga","Si",347481985]
[181,"Baldares Immacolata",13462.43,"Autiero Dalila","via E.de Filippo 8","Ai Genitori di",53048,"Sinalunga","Si",3408560670,577632058]
[182,"Baldares Immacolata",13462.43,"Autiero Martina","via E.de Filippo 8","Ai Genitori di",53048,"Sinalunga","Si",3408560670,577632058]
[183,"Baldares Immacolata",13462.43,"Autiero Matteo","via E.de Filippo 8","Ai Genitori di",53048,"Sinalunga","Si",3408560670,577632058]
[254,"Sergio Anna",833.33,"Balzano Flavio","via Trieste 172","Ai Genitori di",53048,"Sinalunga","Si",3891677194]
[255,"Sergio Anna",833.33,"Balzano Giuseppina","via Trieste 172","Ai Genitori di",53048,"Sinalunga","Si",3891677194]
[109,"Viziereanu Anna Elena",5842.27,"Becherini Riccardo","via Cassia 157 Bettolle","Ai Genitori di",53048,"Sinalunga","Si",3381078244]
[50,"Frisone Annalisa",10395.49,"Belmonte Alessandro","via Ferrari 30","Ai Genitori di",53048,"Sinalunga","Si",3492207363,577636037]
[49,"Frisone Annalisa",10395.49,"Belmonte Andrea ","via Ferrari 30","Ai Genitori di",53048,"Sinalunga","Si",3492207363,577636037]
[159,"Piatti Cinzia",9792.8700000000008,"Biribicchi Gaia","via Trasimeno 14 Guazzino","Ai Genitori di",53048,"Sinalunga","Si",347775795]
[176,"El khadiri Rabiaa",10735.63,"Bomasdour Morad","Loc. Capacciola 204","Ai Genitori di",53048,"Sinalunga","Si",3200474818]
[178,"El khadiri Rabiaa",10735.63,"Bomasdour Samira","Loc. Capacciola 204","Ai Genitori di",53048,"Sinalunga","Si",3200474818]
[175,"El khadiri Rabiaa",10735.63,"Bomasdour Sana","Loc. Capacciola 204","Ai Genitori di",53048,"Sinalunga","Si",3200474818]
[73,"Boscagli Luciano",4600.37,"Boscagli Andrea","via dei Colli 20/a","Ai Genitori di",53048,"Sinalunga","Si",3497791527]
[8,"Boscagli Massimo",11266.28,"Boscagli Luca","via Ravenna 5 Bettolle","Ai Genitori di",53048,"Sinalunga","Si",3312464039]
[227,"Boumarouan Azedine",5610,"Boumarouan Abdelwahed","via Curtatone 4","Ai Genitori di",53048,"Sinalunga","Si",3881173812]
[226,"Boumarouan Azedine",5610,"Boumarouan Aya","via Curtatone 4","Ai Genitori di",53048,"Sinalunga","Si",3881173812]
[157,"Fili Zahra",8631.3799999999992,"Boumarovan Rafik","via Golgi 2","Ai Genitori di",53048,"Sinalunga","Si",3401049339]
[158,"Fili Zahra",8631.3799999999992,"Boumarovan Youssra","via Golgi 2","Ai Genitori di",53048,"Sinalunga","Si",3401049340]
[151,"Bozzola Davide",10956.49,"Bozzola Lana","via Fiorenzola 21","Ai Genitori di",53048,"Sinalunga","Si",3471061121,577658068]
[148,"Bozzola Davide",10956.49,"Bozzola Laura","via Fiorenzola 21","Ai Genitori di",53048,"Sinalunga","Si",3471061121,577658067]
[149,"Bozzola Davide",10956.49,"Bozzola Mia","via Fiorenzola 21","Ai Genitori di",53048,"Sinalunga","Si",3471061121,577658068]
[110,"Buondonno Domenico",10837.89,"Buondonna Giada","via Trieste 182","Ai Genitori di",53048,"Sinalunga","Si",3317874448]
[207,"Buracchi Paolo",0,"Buracchi Aurora","via Chico Mendes 7 Guazzino","Ai Genitori di",53048,"Sinalunga","Si",3384675230]
[206,"Buracchi Paolo",0,"Buracchi Enya","via Chico Mendes 7 Guazzino","Ai Genitori di",53048,"Sinalunga","Si",3384675230]
[208,"Buracchi Paolo",0,"Buracchi Manuel","via Chico Mendes 7 Guazzino","Ai Genitori di",53048,"Sinalunga","Si",3384675230]
[130,"Perrotta Francesca",14687.64,"Castiello Teresa","via Colonna 2/e","Ai Genitori di",53048,"Sinalunga","Si",3808907718]
[262,"La Barbera Francesca",5248.78,"Catania Samuele","via L.Giacomo Puccini 37 Guazzino","Ai Genitori di",53048,"Sinalunga","Si",3883296671]
[94,"Colangeli Alberto",9188.25,"Colangeli Daniele","via Gramsci 10","Ai Genitori di",53048,"Sinalunga","Si",3313650725]
[21,"Cecconati Marcella",7444.72,"Coletto Siria","via Ferrara 9","Ai Genitori di",53048,"Sinalunga","Si",3931248555,577623081]
[20,"Cecconati Marcella",7444.72,"Coletto thomas","via Ferrara 9","Ai Genitori di",53048,"Sinalunga","Si",3931248555,577623081]
[242,"Zaccarino Vincenza",8522.67,"Coppola Catello","Piazza 4 Novembre 11","Ai Genitori di",53048,"Sinalunga","Si",3485698371]
[241,"Zaccarino Maria Rosaria",4778.13,"Coppola Maria Grazia","via Guerrazzi 31","Ai Genitori di",53048,"Sinalunga","Si",3477933722]
[238,"Zaccarino Maria Rosaria",4778.13,"Coppola Marina","via Guerrazzi 31","Ai Genitori di",53048,"Sinalunga","Si",3477933722]
[240,"Zaccarino Maria Rosaria",4778.13,"Coppola Michela","via Guerrazzi 31","Ai Genitori di",53048,"Sinalunga","Si",3477933722]
[239,"Zaccarino Maria Rosaria",4778.13,"Coppola Noemi","via Guerrazzi 31","Ai Genitori di",53048,"Sinalunga","Si",3477933722]
[243,"Zaccarino Vincenza",8522.67,"Coppola Sefora","Piazza 4 Novembre 11","Ai Genitori di",53048,"Sinalunga","Si",3485698371]
[184,"D'Alessio Daniele",8874.81,"D'Alessio Davide","via Gramsci 10","Ai Genitori di",53048,"Sinalunga","Si",3313651766]
[131,"Bene Noemi",5260.68,"Daniello Francesco","via del Poggio di Mezzo","Ai Genitori di",53048,"Sinalunga","Si",3478003831]
[5,"Turini Robertina ",4487.22,"D'Antonio Crystoher","Borgo San Marcellino 1 Rigomagno","Ai Genitori di",53048,"Sinalunga","Si",3249035518]
[4,"Turini Robertina ",4487.22,"D'Antonio Jonathan","Borgo San Marcellino 1 Rigomagno","Ai Genitori di",53048,"Sinalunga","Si",3249035518]
[89,"Belmonte Marisa",3478.67,"De Rosa Alessia","via Paganini 4/a","Ai Genitori di",53048,"Sinalunga","Si",3451852283]
[172,"Di Leo Giovanni",10442.26,"Di Leo Giampiero","via de Filippo 10","Ai Genitori di",53048,"Sinalunga","Si",3383934297,577632198]
[171,"Di Leo Giovanni",10441.26,"Di Leo Samuel Esechiele","via de Filippo 10","Ai Genitori di",53048,"Sinalunga","Si",3383934297,577632198]
[124,"Gargiulo Pasqualina",8843.75,"Di Leva Michela","via Napoli 19 B","Ai Genitori di",53048,"Sinalunga","Si",3388357734]
[125,"Gargiulo Pasqualina",8843.75,"Di Leva P . Paolo","via Napoli 19 B","Ai Genitori di",53048,"Sinalunga","Si",3388357734]
[55,"Dzeljo Zejdjan",0,"Dzeljo Edin","via Ravenna 141 Bettolle","Ai Genitori di",53048,"Sinalunga","Si",3271856804]
[54,"Dzeljo Zejdjan",0,"Dzeljo Ennes","via Ravenna 141 Bettolle","Ai Genitori di",53048,"Sinalunga","Si",3271856804]
[56,"Dzeljo Zejdjan",0,"Dzeljo Mehmed","via Ravenna 141 Bettolle","Ai Genitori di",53048,"Sinalunga","Si",3271856804]
[78,"Dzemic Alija",2546.8200000000002,"Dzemic Alen","via Paganini 13","Ai Genitori di",53048,"Sinalunga","Si",39372246207]
[79,"Dzemic Alija",2546.8200000000002,"Dzemic Armina","via Paganini 13","Ai Genitori di",53048,"Sinalunga","Si",39372246207]
[80,"Dzemic Alija",2546.8200000000002,"Dzemic Redzo","via Paganini 13","Ai Genitori di",53048,"Sinalunga","Si",39372246207]
[82,"Ediani Bouchaib",2074.19,"Ediani Abdechahid","via Amendola 25","Ai Genitori di",53048,"Sinalunga","Si",32994909048]
[81,"Ediani Bouchaib",2074.19,"Ediani Chaimaa","via Amendola 25","Ai Genitori di",53048,"Sinalunga","Si",32994909048]
[28,"Elezi Sokol",0,"Elezi Dalip","via Trento 68","Ai Genitori di",53048,"Sinalunga","Si",3494375374]
[27,"Elezi Sokol",0,"Elezi Milena","via Trento 68","Ai Genitori di",53048,"Sinalunga","Si",3494375374]
[252,"Ese Saljat",2538.04,"Ese Sadela","via Nello Boscagli 9","Ai Genitori di",53048,"Sinalunga","Si",3207487692]
[253,"Ese Saljat",2538.04,"Ese Senadin","via Nello Boscagli 9","Ai Genitori di",53048,"Sinalunga","Si",3207487692]
[234,"Et Toufi Ahmed",5824.31,"Et Toufi Ayoubi","via Trieste 52","Ai Genitori di",53048,"Sinalunga","Si",3392425423]
[45,"Bardelli Paola",9236.3700000000008,"Farsi Mascia","Loc. Capacciola 191 b","Ai Genitori di",53048,"Sinalunga","Si",3663387757,577631410]
[53,"Prosa Daniela",13012.38,"Ferace Veronica","via Matteotti 71 ","Ai Genitori di",53048,"Sinalunga","Si",3400687768,577630237]
[165,"Vitrano Rosalia",7139.46,"Ferraro Pietro","via Cassia 168 Bettolle","Ai Genitori di",53048,"Sinalunga","Si",3452863920,577623396]
[167,"Vitrano Rosalia",7139.46,"Ferraro Roberta","via Cassia 168 Bettolle","Ai Genitori di",53048,"Sinalunga","Si",3452863920,577623396]
[166,"Vitrano Rosalia",7139.46,"Ferraro Vincenzo","via Cassia 168 Bettolle","Ai Genitori di",53048,"Sinalunga","Si",3452863920,577623396]
[244,"Zaccarino Vincenza",8522.67,"Fiorente Alberto","Piazza 4 Novembre 11","Ai Genitori di",53048,"Sinalunga","Si",3485698371]
[245,"Frusciante Ferrero",2584.71,"Frusciante Nicole","via Rigaiolo 83","Ai Genitori di",53048,"Sinalunga","Si",3883288911,577679988]
[97,"Fucci Claudio",7283.14,"Fucci Elena","loc. Abergo 66 Scrofiano","Ai Genitori di",53048,"Sinalunga","Si",3933961541]
[98,"Fucci Claudio",7283.14,"Fucci Gaia","loc. Abergo 66 Scrofiano","Ai Genitori di",53048,"Sinalunga","Si",3933961541]
[162,"Mordente Lucia",10263.629999999999,"Fusano Chiara","via Loc. Santarello 142","Ai Genitori di",53048,"Sinalunga","Si",3277169794]
[161,"Barcellona Agatina",4817.3100000000004,"Ganci Alex","via Golgi 2","Ai Genitori di",53048,"Sinalunga","Si",3711236171]
[160,"Barcellona Agatina",4817.3100000000004,"Ganci Ilaria","via Golgi 2","Ai Genitori di",53048,"Sinalunga","Si",3711236171]
[128,"Brancaccio Agnese ",6313.72,"Gargiulo Antonietta","via Napoli 19/a","Ai Genitori di",53048,"Sinalunga","Si",3313966653]
[129,"Brancaccio Agnese ",6313.72,"Gargiulo Vincenzo","via Napoli 19/a","Ai Genitori di",53048,"Sinalunga","Si",3313966653]
[122,"Soave Valeria",3322.46,"Gasparri Alberto","via Rigaiolo 64","Ai Genitori di",53048,"Sinalunga","Si",3333272825,577660019]
[123,"Soave Valeria",3322.46,"Gasparri Leonardo","via Rigaiolo 64","Ai Genitori di",53048,"Sinalunga","Si",3333272825,577660019]
[187,"Rosati Sara",9314.82,"Gavioli Mazza Davide","via Colonna 2h","Ai Genitori di",53048,"Sinalunga","Si",3333738776]
[179,"Geraci Giuseppe",10078.86,"Geraci Mattia","via Montemartino 53 Guazzino","Ai Genitori di",53048,"Sinalunga","Si",3404876487]
[186,"Ruscitto Raffaella Zelia",9208.2800000000007,"Ghinelli Angelica Lucia","Walter Tobagi 22 Rigomagno","Ai Genitori di",53048,"Sinalunga","Si",3927894859]
[36,"Ferace Maria Belen",2706.67,"Giangregorio Matteo","via Tempora 19 Bettolle","Ai Genitori di",53048,"Sinalunga","Si",3392520403]
[143,"Gigirtu Filofteia",9195.86,"Gigirtu Vladut Mihail","loc Colle  88 Scrofiano","Ai Genitori di",53048,"Sinalunga","Si",3345498664]
[17,"Cutini Elena ",10886.03,"Giso Caterina","loc. Vallina 126 Rigaiolo","Ai Genitori di",53048,"Sinalunga","Si",3479636988,577630259]
[18,"Cutini Elena ",10886.03,"Giso Michele","loc. Vallina 126 Rigaiolo","Ai Genitori di",53048,"Sinalunga","Si",3479636988,577630259]
[163,"Rosati Sonia",12885.61,"Gon Nicolas","via Montegrappa 4","Ai Genitori di",53048,"Sinalunga","Si",3334140771]
[198,"Gorde Sacip",0,"Gorde Ernes","via della Valle 7","Ai Genitori di",53048,"Sinalunga","Si",3890364798]
[71,"Grappa Davide",1091.1400000000001,"Grappa Laura","via P. Togliatti 8 Bettolle","Ai Genitori di",53048,"Sinalunga","Si",3383378471]
[70,"Grappa Davide",1091.1400000000001,"Grappa Maria Chiara","via P. Togliatti 8 Bettolle","Ai Genitori di",53048,"Sinalunga","Si",3383378471]
[9,"Russo Vittoria",8743.25,"Grassi Sofia","via de Filippo 1","Ai Genitori di",53048,"Sinalunga","Si",3402141209]
[100,"Gupi Luisa ",3936.99,"Gupi  Ledio","via P. Togliatti 10 Bettolle","Ai Genitori di",53048,"Sinalunga","Si",3495408189]
[37,"Guron Talwinder Singh",6953.76,"Guron Jaspreet Singh","loc. Rigaiolo 31","Ai Genitori di",53048,"Sinalunga","Si",3389099552,577678379]
[263,"Majdoub Rachida",3778.03,"Hajria Bilel ","via Pescaiole 17","Ai Genitori di",53048,"Sinalunga","Si",3469838868]
[190,"Herghelegiu Alina",6902.44,"Herghelegiu Miriam","via Giotto 3","Ai Genitori di",53048,"Sinalunga","Si",3886551024,"Controllare documento"]
[223,"Houssni Abdelkarim",0,"Houssni Islam","via Trieste 82","Ai Genitori di",53048,"Sinalunga","Si",3336892892]
[222,"Houssni Abdelkarim",0,"Houssni Mohamed Houssam","via Trieste 82","Ai Genitori di",53048,"Sinalunga","Si",3336892892]
[224,"Houssni Abdelkarim",0,"Houssni Oussama","via Trieste 82","Ai Genitori di",53048,"Sinalunga","Si",3336892892]
[112,"Ibra suhada",4203.88,"Ibra Adina","via Dante 11","Ai Genitori di",53048,"Sinalunga","Si",3271331174]
[111,"Ibra suhada",4203.88,"Ibra Ines","via Dante 11","Ai Genitori di",53048,"Sinalunga","Si",3271331174]
[174,"Jawicz Marek",5302.5,"Jawicz Gabriel","via dell'Unità 3","Ai Genitori di",53048,"Sinalunga","Si",3923962395]
[210,"Azedyou Khadija",8033.33,"Jourairi Jamal","via Fiume 16","Ai Genitori di",53048,"Sinalunga","Si",3288857572]
[211,"Azedyou Khadija",8033.33,"Jourairi Nora","via Fiume 16","Ai Genitori di",53048,"Sinalunga","Si",3288857572]
[209,"Makoungue Eugenie",1459.36,"Kamta Lous Franch","via Matteotti 41","Ai Genitori di",53048,"Sinalunga","Si",3279747250]
[231,"Kaplani Samir",5000.3,"Kaplani Nejla","via Garda 26","Ai Genitori di",53048,"Sinalunga","Si",3271636216,5771651062]
[230,"Kaplani Samir",5000.3,"Kaplani Sara","via Garda 26","Ai Genitori di",53048,"Sinalunga","Si",3271636216,5771651062]
[250,"Singh Swarian",3958.92,"Kaur Gurwinder","via Emociccia 282","Ai Genitori di",53048,"Sinalunga","Si",3397190401]
[251,"Singh Swarian",3958.92,"Kaur Jaspreet","via Emociccia 282","Ai Genitori di",53048,"Sinalunga","Si",3397190401]
[137,"Sing Rajender",9570.25,"Kaur Ramandeep","via Zara 22","Ai Genitori di",53048,"Sinalunga","Si",3391573414]
[199,"Susi Bastiani",11514.35,"La Morte Sofia","via Ferrari 6 Farnetella","Ai Genitori di",53048,"Sinalunga","Si",3475319823,577663681]
[38,"Bounqourt Najat",4025.26,"lahrech Sara","via Trieste 208","Ai Genitori di",53048,"Sinalunga","Si",3282570572]
[115,"Sgambati Lucia",10659.37,"Lanzara Andreana","via Voltella 110","Ai Genitori di",53048,"Sinalunga","Si",3343489014,577679154]
[3,"Peruzzi Elisabetta",3596.96,"Latempa Alessio","via Bezzecca 28","Ai Genitori di",53048,"Sinalunga","Si",3497208851]
[2,"Peruzzi Elisabetta",3596.96,"Latempa Dennis","via Bezzecca 28 ","Ai Genitori di",53048,"Sinalunga","Si",3497208851]
[189,"Forciniti Stefania",4787.28,"Laurenzano Aurora","via Togliatti 27 Bettolle","Ai Genitori di",53048,"Sinalunga","Si",3387509977]
[150,"Forciniti Stefania",4787.28,"Laurenzano Gessica","via Togliatti 27 Bettolle","Ai Genitori di",53048,"Sinalunga","Si",3387509977]
[72,"Lo Martire Gaetana",5873.75,"Leo Maria Federica","via Napoli 10","Ai Genitori di",53048,"Sinalunga","Si",3477771832]
[185,"Leti Kristina",8027.49,"Leti Rossella","via Nencetti 13","Ai Genitori di",53048,"Sinalunga","Si",3282925769]
[136,"Di Leo Silvana",5486.74,"Lo Russo Diletta","via Mazzini 26 Bettolle","Ai Genitori di",53048,"Sinalunga","Si",3283416412]
[135,"Di Leo Silvana",5486.74,"Lo Russo Pietro","via Mazzini 26 Bettolle","Ai Genitori di",53048,"Sinalunga","Si",3283416412]
[77,"Lodovichi Walter",6200,"Lodovichi Gaia","via de Nicola 35","Ai Genitori di",53048,"Sinalunga","Si",3204277190]
[76,"Lodovichi Walter",6200,"Lodovichi Gloria","via de Nicola 35","Ai Genitori di",53048,"Sinalunga","Si",3204277190]
[113,"Macedonio Giada",13137.07,"Macedonio Giada","via A.Rossi 1","Ai Genitori di",53048,"Sinalunga","Si",3290099435]
[114,"Zavaglia Ornella",13137.07,"Macedonio Mattia","via A.Rossi 1","Ai Genitori di",53048,"Sinalunga","Si",3290099435]
[91,"Perez Fajardo Anyeli",4803.8100000000004,"Maddaluno Noemi Alessandra","via Pio la Torre 3 Bettolle","Ai Genitori di",53048,"Sinalunga","Si",3384120632]
[15,"Catania Annamaria",8478.4599999999991,"Madonia Pietro","Piazza del Castagno 6 Bettolle","Ai Genitori di",53048,"Sinalunga","Si",3923964091]
[16,"Catania Annamaria",8478.4599999999991,"Madonia Rosalia","Piazza del Castagno 6 Bettolle","Ai Genitori di",53048,"Sinalunga","Si",3923964091]
[225,"Maghni Abbes",2394.04,"Maghni Anas","via Nencetti 19","Ai Genitori di",53048,"Sinalunga","Si",3337961299,577624682]
[154,"Di Leo Daniela",11848.85,"Maiorano Leonor","via 2 Giugno 26","Ai Genitori di",53048,"Sinalunga","Si",3338254112]
[177,"Di Leo Gemina",10248.58,"Maiorano Matteo","via della Libertà 6","Ai Genitori di",53048,"Sinalunga","Si",3466099057,577624665]
[155,"Di Leo Daniela",11848.85,"Maiorano Naomi","via 2 Giugno 26","Ai Genitori di",53048,"Sinalunga","Si",3338254112]
[173,"Di Leo Gemina",10248.58,"Maiorano Sophia","via della Libertà 6","Ai Genitori di",53048,"Sinalunga","Si",3466099057,577624665]
[92,"Gueye Faty",10454.65,"Mame Diarra","via Nencetti 26","Ai Genitori di",53048,"Sinalunga","Si",3296991421]
[93,"Gueye Faty",10454.65,"Mame Maty","via Nencetti 26","Ai Genitori di",53048,"Sinalunga","Si",3296991421]
[156,"Parri Barbara",13274.45,"Marchi Sara","via Santarello 149","Ai Genitori di",53048,"Sinalunga","Si",3487187688]
[39,"Maji Bouchra",6353.75,"Masaaf Safouan","via Golgi 1","Ai Genitori di",53048,"Sinalunga","Si",3883814418]
[40,"Maji Bouchra",6353.75,"Masaaf Salma","via Golgi 1","Ai Genitori di",53048,"Sinalunga","Si",3883814418]
[41,"Maji Bouchra",6353.75,"Masaaf Souhil","via Golgi 1","Ai Genitori di",53048,"Sinalunga","Si",3883814418]
[26,"Scarpa Giuseppina",4942.41,"Masella Davide","via Rosselli 4 Guazzino","Ai Genitori di",53048,"Sinalunga","Si",3406604369,577623254]
[152,"Massini Jacopo",11821.38,"Massini Jacopo Junior","Loc. Spelaghesi 120 Scrofiano","Ai Genitori di",53048,"Sinalunga","Si",3347350271,577660189]
[247,"Izzo Agnese",5861.97,"Mazzacane Nives Maria","via Cassia 115 Bettolle","Ai Genitori di",53048,"Sinalunga","Si",3490893050]
[86,"Lopez Ambra",9046.69,"Mazzella Caterina","via Frati 167","Ai Genitori di",53048,"Sinalunga","Si",3383829843]
[104,"Casuccio Maria Stella",12275.37,"Meacci Alberto","via Regina Margherita  20 Farnetella","Ai Genitori di",53048,"Sinalunga","Si",3296169116]
[105,"Casuccio Maria Stella",12275.37,"Meacci Alessio","via Regina Margherita  20 Farnetella","Ai Genitori di",53048,"Sinalunga","Si",3296169116]
[46,"Di Pietro Anna",7325.61,"Menditto Dario","via Marzabotto 1/a","Ai Genitori di",53048,"Sinalunga","Si",3275349868]
[48,"Di Pietro Anna",7325.61,"Menditto Dylan","via Marzabotto 1/a","Ai Genitori di",53048,"Sinalunga","Si",3275349868]
[47,"Di Pietro Anna",7325.61,"Menditto Mario Jumior","via Marzabotto 1/a","Ai Genitori di",53048,"Sinalunga","Si",3275349868]
[200,"Zappia Loredana",7936.7,"Mercuri Nicola","via Pescaiole 11","Ai Genitori di",53048,"Sinalunga","Si",3476663823]
[32,"Mocanu Lenuta Claudia ",5566.92,"Mocanu Christian Pietro","via del Poggio 1","Ai Genitori di",53048,"Sinalunga","Si",3296439156]
[31,"Mocanu Lenuta Claudia ",5566.92,"Mocanu Mihaela Alexandra","via del Poggio 1","Ai Genitori di",53048,"Sinalunga","Si",3296439156]
[102,"Idebdou Asmaa",8338.81,"Morchid  Adnane","Piazza Padella 7","Ai Genitori di",53048,"Sinalunga","Si",3271625111]
[103,"Idebdou Asmaa",8338.81,"Morchid  Walid","Piazza Padella 7","Ai Genitori di",53048,"Sinalunga","Si",3271625111]
[101,"Idebdou Asmaa",8338.81,"Morchid Rayane","Piazza Padella 7","Ai Genitori di",53048,"Sinalunga","Si",3271625111]
[33,"Danculea Elena",7964.23,"Muresan Stefano Giovanni","via Borsellino 18 Bettolle","Ai Genitori di",53048,"Sinalunga","Si",3294542257]
[87,"Sinameta Aida",9715.02,"Musaku Emanuele","via Boscagli 4","Ai Genitori di",53048,"Sinalunga","Si",3200257366]
[260,"Mutas Seljajdin",4171.1499999999996,"Mutas Rean","via 4 Novembre 11","Ai Genitori di",53048,"Sinalunga","Si",3890934426]
[259,"Mutas Seljajdin",4171.1499999999996,"Mutas Senil","via 4 Novembre 11","Ai Genitori di",53048,"Sinalunga","Si",3890934426]
[64,"Nanushi Edmira",3251.65,"Nanushi Brisilda","via Procacci 20","Ai Genitori di",53048,"Sinalunga","Si",3806850798]
[65,"Nanushi Edmira",3251.65,"Nanushi Ornela","via Procacci 20","Ai Genitori di",53048,"Sinalunga","Si",3806850798]
[63,"Nanushi Edmira",3251.65,"Nanushi Rossella","via Procacci 20","Ai Genitori di",53048,"Sinalunga","Si",3806850798]
[88,"Nauni Ardian",0,"Nauni Sebastiano","via Piave 17","Ai Genitori di",53048,"Sinalunga","Si",3290254836]
[83,"Efetimie Mariana",1745.69,"Nedieanu Stefan Richard","loc. Cappella 7","Ai Genitori di",53048,"Sinalunga","Si",3933613331]
[153,"Nisi Roberto",13733.05,"Nisi Francesco","via Pietraia 33","Ai Genitori di",53048,"Sinalunga","Si",3459593960,577631537]
[220,"Noli Massimo",9126.26,"Noli Alberto","via Lucignano 9","Ai Genitori di",53048,"Sinalunga","Si","0577663536"]
[219,"Noli Massimo",9126.26,"Noli Giada","via Lucignano 9","Ai Genitori di",53048,"Sinalunga","Si","0577663536"]
[119,"Nosal Marek Edward",3161.69,"Nosal Natalya Anna","via Della Speranza 37","Ai Genitori di",53048,"Sinalunga","Si",3889341902]
[232,"Osareniye Oghogho Vivian",101.87,"Odia Trecy","via Ciro Pinzuti 22","Ai Genitori di",53048,"Sinalunga","Si",3282798270,577510360]
[168,"Omeri Bajram",6648.77,"Omeri Almedin","via Po’ 32","Ai Genitori di",53048,"Sinalunga","Si",3299831837]
[194,"Omeri Bajram",6648.77,"Omeri Suneit","via Po’ 32","Ai Genitori di",53048,"Sinalunga","Si",3299831837]
[95,"De Simone Carla",360.91,"Onorato Alessio","via Casalpiano 20","Ai Genitori di",53048,"Sinalunga","Si",3385849071]
[96,"De Simone Carla",360.91,"Onorato Antonio","via Casalpiano 20","Ai Genitori di",53048,"Sinalunga","Si",3385849071]
[62,"Oros Adrian",6805.69,"Oros Larisa","Borgo San Marcellino 12 Rigomagno","Ai Genitori di",53048,"Sinalunga","Si",3452312401]
[61,"Oros Adrian",6805.69,"Oros Lorenzo Andrei","Borgo San Marcellino 12 Rigomagno","Ai Genitori di",53048,"Sinalunga","Si",3452312401]
[257,"Daviddi Sabrina",3430.9,"Orsino Cristian","via Etruschi 15","Ai Genitori di",53048,"Sinalunga","Si",3495013829]
[22,"Gladkova Natalya",6259.02,"Osimo Christian","via degli Etruschi 16","Ai Genitori di",53048,"Sinalunga","Si",3339832643]
[146,"Osmani Bekim",11605.25,"Osmani Berina","via Cappella 19","Ai Genitori di",53048,"Sinalunga","Si",3923030638]
[57,"El Manouni Turaya",2587.7800000000002,"Ouadii Mohammed","via Paganini 3","Ai Genitori di",53048,"Sinalunga","Si",3409981088]
[58,"El Manouni Turaya",2587.7800000000002,"Ouadii Wissal","via Paganini 3","Ai Genitori di",53048,"Sinalunga","Si",3409981088]
[14,"Pal Jaswinder",6610.18,"Pal Mohit Kumar","via Pablo Neruda 1 Bettolle","Ai Genitori di",53048,"Sinalunga","Si",3334554191,57762375]
[52,"Panariello Elvira",6320.68,"Pallone Cristian","via Vittorio emanuele 10","Ai Genitori di",53048,"Sinalunga","Si",3774818550]
[51,"Panariello Elvira",6320.68,"Pallone Rosa","via Vittorio emanuele 10","Ai Genitori di",53048,"Sinalunga","Si",3774818550]
[261,"Viti Elisa",3096.71,"Paolucci Ettore","via Serraglio 226","Ai Genitori di",53048,"Sinalunga","Si",3400782061]
[246,"Pappalardo Modestino",9587.48,"Pappalardo Denise","via Nello Boscagli 4","Ai Genitori di",53048,"Sinalunga","Si",3478036346,577631172]
[69,"Smocot Simona Cecilia",2884.59,"Pascariu Eduart","via Trasimeno 29 b Guazzino","Ai Genitori di",53048,"Sinalunga","Si",3201520109]
[139,"Pascariu Benoni",1852.19,"Pascariu Joseph","via Trasimeno 29 b Guazzino","Ai Genitori di",53048,"Sinalunga","Si",3409782981]
[68,"Smocot Simona Cecilia",2884.59,"Pascariu Patrick","via Trasimeno 29 b Guazzino","Ai Genitori di",53048,"Sinalunga","Si",3201520109]
[140,"Pascariu Benoni",1852.19,"Pascariu Rubens","via Trasimeno 29 b Guazzino","Ai Genitori di",53048,"Sinalunga","Si",3409782981]
[59,"Tullio Vania",7125.57,"Paternostro Fabiana","via E. de Filippo 3","Ai Genitori di",53048,"Sinalunga","Si",3358021128]
[60,"Tullio Vania",7125.57,"Paternostro Mirko","via E. de Filippo 3","Ai Genitori di",53048,"Sinalunga","Si",3358021128]
[118,"Nosal Marek Edward",3161.69,"Patryk Marek","via Della Speranza 37","Ai Genitori di",53048,"Sinalunga","Si",3889341902]
[90,"Perez Fajardo Anyeli",4803.8100000000004,"Perez Perez Yismele Darianna","via Pio la Torre 3 Bettolle","Ai Genitori di",53048,"Sinalunga","Si",3384120632]
[180,"Gragnoli Marta",4964.3900000000003,"Peruzzi Alessandro","via Delle Mura 2","Ai Genitori di",53048,"Sinalunga","Si",3407609345]
[147,"Nocciolini Daniela",11857.97,"Perzullo Mirko","via Puccini 40 Guazzino","Ai Genitori di",53048,"Sinalunga","Si",3398154190]
[44,"Pierini Luciano",7276.91,"Pierini Luca","Piazza  R. Margherita 3 Rigomagno","Ai Genitori di",53048,"Sinalunga","Si",3487937589,577663771]
[221,"Sorbara Maria Grazia",8406.67,"Puglia Anna Maria","via Enzo Ferrari 28","Ai Genitori di",53048,"Sinalunga","Si",3347988101]
[217,"Sica Valeria",5896.84,"Puglia Giuseppe","via Paganini 24","Ai Genitori di",53048,"Sinalunga","Si",3487016802,55678083]
[1,"Rakib Abdelaziz",4834.3,"Rakib Kamal","via della Speranza 30","Ai Genitori di",53048,"Sinalunga","Si",3482741795]
[24,"Cappuccio Giovanna",11539.1,"Rea Chiara","via Cassia 115 Bettolle","Ai Genitori di",53048,"Sinalunga","Si",34052007901,577624083]
[23,"Cappuccio Giovanna",11539.1,"Rea Sara","via Cassia 115 Bettolle","Ai Genitori di",53048,"Sinalunga","Si",34052007901,577624083]
[195,"Reka Sulejman",3535.2,"Reka Elvin","via po’ 32","Ai Genitori di",53048,"Sinalunga","Si",3313381079]
[25,"Riccarelli Carlo",6025.49,"Riccarelli Irene","Rigaiolo 294/c","Ai Genitori di",53048,"Sinalunga","Si",3382275293]
[29,"Cuozzo Rosaria",4784.63,"Riccio Vincenzo","via della Liberta 10 ","Ai Genitori di",53048,"Sinalunga","Si",3392836558,577623674]
[214,"Cinquegrana Maria immacolata",1108.4100000000001,"Romano Giocchino Pio","via Trento 224","Ai Genitori di",53048,"Sinalunga","Si",3289112014]
[213,"Cinquegrana Maria immacolata",1108.4100000000001,"Romano Noemi","via Trento 224","Ai Genitori di",53048,"Sinalunga","Si",3289112014]
[212,"Cinquegrana Maria immacolata",1108.4100000000001,"Romano Tommaso","via Trento 223","Ai Genitori di",53048,"Sinalunga","Si",3289112014]
[233,"Marra Giuseppina",7401.17,"Rosadini Viola","via Angelo Grassi 1 Rigomagno","Ai Genitori di",53048,"Sinalunga","Si",3206357029,577663787]
[191,"Borisova Tanya Angelova",1427.32,"Roseva Martina Ruseva","via Caselle Alte 99","Ai Genitori di",53048,"Sinalunga","Si",3202703314]
[202,"Tanev Tanio Roussev",12308.06,"Roussev Ruslan Tanev","via Pio la Torre 5 Bettolle","Ai Genitori di",53048,"Sinalunga","Si",3275784169]
[43,"Ferace Virginia Soleda",0,"Russo Federica","via A.Saffi 63 Bettolle","Ai Genitori di",53048,"Sinalunga","Si",null,577623466]
[11,"Sabar Noureddine",4454.04,"Sabar Aya","via  Tobagi 5 Rigomagno","Ai Genitori di",53048,"Sinalunga","Si",3281531476]
[10,"Sabar Noureddine",4454.04,"Sabar Douaa","via  Tobagi 5 Rigomagno","Ai Genitori di",53048,"Sinalunga","Si",3281531476]
[196,"Sabar Abdelaziz",6949.54,"Sabar Mohamad","via Bezzecca 24","Ai Genitori di",53048,"Sinalunga","Si",3451395727]
[12,"Sabar Noureddine",4454.04,"Sabar Soufiane","via  Tobagi 5 Rigomagno","Ai Genitori di",53048,"Sinalunga","Si",3281531476]
[197,"Sabar Abdelaziz",6949.54,"Sabar Yasmin","via Bezzecca 24","Ai Genitori di",53048,"Sinalunga","Si",3451395728]
[204,"Salem Mohamed",5439.78,"Salem Imane","via Trasimeno 32 Guazzino","Ai Genitori di",53048,"Sinalunga","Si",3883573761,5771742216]
[203,"Salem Mohamed",5439.78,"Salem Nasser Eddine","via Trasimeno 32 Guazzino","Ai Genitori di",53048,"Sinalunga","Si",3883573761,5771742216]
[235,"Laurenzano Lucrezia",10349.25,"Salvatore Giuseppe","via Trasimeno 41 Guazzino","Ai Genitori di",53048,"Sinalunga","Si","3409266753","0577630431"]
[192,"Samb Momar Talla",0,"Samb Mouhamed","via 8 Maggio 1 ","Ai Genitori di",53048,"Sinalunga","Si",3206254175]
[19,"Tavarez Lucia",4470.6000000000004,"Sanchez Tavarez Michell","via Castellina 4 Scrofiano","Ai Genitori di",53048,"Sinalunga","Si",3496916313]
[106,"Labriola Rosanna",13500.33,"Scortecci Manuel","loc. Montemartino 68 Guazzino","Ai Genitori di",53048,"Sinalunga","Si",3289538586]
[107,"Labriola Rosanna",13500.33,"Scortecci Sharon","loc. Montemartino 68 Guazzino","Ai Genitori di",53048,"Sinalunga","Si",3289538586]
[205,"Spinelli Concetta Immacolata",14317.33,"Sibilli Assunta","via Voltella 22","Ai Genitori di",53048,"Sinalunga","Si",3476253224]
[216,"Hasani Ajshe",5255.25,"Simnica Alta","via Zara 2","Ai Genitori di",53048,"Sinalunga","Si",3883823939]
[215,"Hasani Ajshe",5255.25,"Simnica Ylli","via Zara 2","Ai Genitori di",53048,"Sinalunga","Si",3883823939]
[13,"Singh Mohan",7310.11,"Singh Anshdeep","via Trasimeno 69 Guazzino","Ai Genitori di",53048,"Sinalunga","Si",3293145241]
[248,"Kumar Sanjeev",1074.98,"Singh Jugthar","via Boito 28 Guazzino","Ai Genitori di",53048,"Sinalunga","Si",3392980761]
[249,"Kumar Sanjeev",1074.98,"Singh Mandeep","via Boito 28 Guazzino","Ai Genitori di",53048,"Sinalunga","Si",3392980761]
[138,"Sing Rajender",9570.25,"Singh Ranvir","via Zara 22","Ai Genitori di",53048,"Sinalunga","Si",3391573414]
[258,"Singh Simrranjeet",9391.3799999999992,"Singh Simrranjeet","Via Trasimeno 67 Guazzino","Ai Genitori di",53048,"Sinalunga","Si","??????"]
[256,"Pala Vanessa",14107.07,"Sini Matilde","via San Niccolò 39","Ai Genitori di",53048,"Sinalunga","Si",3403387602]
[108,"Souni Abdellah",2061.4699999999998,"SouniSoukaina","via Golgi 1","Ai Genitori di",53048,"Sinalunga","Si",3897834401]
[6,"Calabrese Eliana",6812.09,"Spagnolo Anita","via E. de Filippo 1","Ai Genitori di",53048,"Sinalunga","Si",3478812578,577679005]
[7,"Calabrese Eliana",6812.09,"Spagnolo Salvatore","via E. de Filippo 1","Ai Genitori di",53048,"Sinalunga","Si",3478812578,577679005]
[75,"Mennone Monica",0,"Speranza Liliana","via V.Veneto 22 Bettolle","Ai Genitori di",53048,"Sinalunga","Si",3385384841]
[74,"Mennone Monica",0,"Speranza Salvatore","via V.Veneto 22 Bettolle","Ai Genitori di",53048,"Sinalunga","Si",3385384841]
[30,"Lupak Lidiya",4995.09,"Stukalyuk Dariy","via Belbedere 21","Ai Genitori di",53048,"Sinalunga","Si",3290708757]
[67,"Alji Nadia ",4145.63,"Taby Amira","via Garda 24","Ai Genitori di",53048,"Sinalunga","Si",3284352202]
[66,"Alji Nadia ",4145.63,"Taby Jannat","via Garda 24","Ai Genitori di",53048,"Sinalunga","Si",3284352202]
[237,"Riccarelli Elena",5437.59,"Tammaro Elisa","via Dante 38","Ai Genitori di",53048,"Sinalunga","Si",3485780983]
[236,"Riccarelli Elena",5437.59,"Tammaro Giulia","via Dante 38","Ai Genitori di",53048,"Sinalunga","Si",3485780983]
[34,"Pellicani Simona",6766.35,"Torzoni Angelo","via degli Etruschi 9","Ai Genitori di",53048,"Sinalunga","Si",3931578813]
[35,"Pellicani Simona",6766.35,"Torzoni Aurora","via degli Etruschi 9","Ai Genitori di",53048,"Sinalunga","Si",3931578813]
[264,"Tufa Arben",6843.09,"Tufa Violeta","via Etruschi 2","Ai Genitori di",53048,"Sinalunga","Si",3335889247]
[134,"Tupo Mihaela",11564.36,"Tupo Melissa","via Borsellino 6 Bettolle ","Ai Genitori di",53048,"Sinalunga","Si",3478777914]
[133,"Tupo Mihaela",11564.36,"Tupo Milena","via Borsellino 6 Bettolle ","Ai Genitori di",53048,"Sinalunga","Si",3478777914]
[42,"Perfetto Barbara",10081.4,"Turco Luca","via Ferrari 30","Ai Genitori di",53048,"Sinalunga","Si",3393726583,577678565]
[193,"Urechi Petronelli Adriana",4837.58,"Urechi Iulia","via Guerrazzi 14","Ai Genitori di",53048,"Sinalunga","Si",3280382718]
[265,"Vaccarino Debora",0,"Vaccarino Debora","via Marzabotto 56","Ai Genitori di",53048,"Sinalunga","Si",3478865205]
[141,"Ponticelli Rosanna",0,"Vaccarino Filippo","via Marzabotto 56","Ai Genitori di",53048,"Sinalunga","Si",3478865205]
[127,"Camarda Maddalena",6084.42,"Vaccaro Carmela","via Don Minzoni 59 Bettolle","Ai Genitori di",53048,"Sinalunga","Si",3246196113]
[126,"Camarda Maddalena",6084.42,"Vaccaro Emanuela","via Don Minzoni 59 Bettolle","Ai Genitori di",53048,"Sinalunga","Si",3246196113]
[188,"Vataselu Gherghe Florin",9421.57,"Vataselu Orlando","via Nello Boscagli 4","Ai Genitori di",53048,"Sinalunga","Si",3280987793]
[170,"Velio Ajet",11965.96,"Velio Asia","via Piave 102","Ai Genitori di",53048,"Sinalunga","Si",3289446553]
[169,"Velio Ajet",11964.96,"Velio Sonia","via Piave 102","Ai Genitori di",53048,"Sinalunga","Si",3289446552]
[132,"Francini Paola",13662.78,"Verdi Luca","Loc. Giardino 81 Scrofiano","Ai Genitori di",53048,"Sinalunga","Si",3772603015]
[144,"Kedzierska Marta",6721.79,"Viti Enrico","via Fiume 38 B","Ai Genitori di",53048,"Sinalunga","Si",331597738]
[145,"Kedzierska Marta",6721.79,"Viti Valentina","via Fiume 38 B","Ai Genitori di",53048,"Sinalunga","Si",331597738]
[99,"D'agostino Carmela",0,"Vocile Giada","loc. Ceppi 272 ","Ai Genitori di",53048,"Sinalunga","Si",3336963839]
[164,"Rampi Silvia",5652.31,"Zanelli Lorenzo","Loc.  Santarello 118","Ai Genitori di",53048,"Sinalunga","Si",3395418166]